Cogmind - Beta 14 @@@ ROGUE MODE // 2024.08.18 @ 16:47:01 Player: Dosh Result: Destroyed by P-80 Master with Gamma Rifle Performance ------------- Evolutions (8) 4000 Regions Visited (31) 6200 Robots Destroyed (350) 1750 Value Destroyed (21643) 21643 Prototype IDs (45) 900 Alien Tech Used (5) 1000 Bonus (14554) 14554 TOTAL SCORE: 50047 Bonus ------- High Alert Combat Kills 2456 Follower Combat Kills 9032 Entered Garrisons 1800 Used RIF Installer 5000 Aligned with FarCom 300 Scanned by Researcher 500 Friendly Fire -4534 Cogmind --------- Core Integrity 0/1450 Matter 300/300 Energy 698/700 System Corruption 53% Temperature Cool (0) Movement Core (50) Location -2/Quarantine Parts ------- > --- POWER (2) -------- (None) > --- PROPULSION (6) --- (None) > --- UTILITY (13) ----- Advanced Heat Sink Experimental Energy Well Advanced Signal Interpreter Relay Coupler [NC] (3) Relay Coupler [Sentry] (25) Relay Coupler [Proto] (9) > --- WEAPON (2) ------- (None) > --- INVENTORY (5) ---- Relay Coupler [Proto] (9) Subatomic Replicator Core Cannon Advanced Remote Datajack Peak State ------------ > --- POWER ------------ Quantum Reactor Quantum Reactor > --- PROPULSION ------- Biometal Heavy Treads Advanced Heavy Siege Treads Advanced Heavy Siege Treads > --- UTILITY ---------- Advanced Cooling System Advanced Cooling System Cargo Storage Unit Quantum Capacitor Advanced Transmission Jammer Centrium Heavy Armor Plating Relay Coupler [NC] Relay Coupler [Swarmer] Relay Coupler [Grunt] Relay Coupler [Sentry] > --- WEAPON ----------- Heavy Quantum Rifle Advanced Remote Datajack > --- INVENTORY -------- Light Quantum Reactor Light Quantum Reactor Biometal Medium Treads Biometal Medium Treads Advanced Heavy Siege Treads Advanced Cooling System Huge Storage Unit Experimental Energy Well Experimental Energy Well Authchip [R/NC] Relay Coupler [NC] Relay Coupler [Swarmer] Relay Coupler [Grunt] Relay Coupler [Sentry] Relay Coupler [Sentry] Relay Coupler [Heavy] Relay Coupler [Behemoth] Relay Coupler [Proto] Relay Coupler [Proto] HERF Cannon Enhanced Nova Cannon Potential Cannon Micro-nuke Launcher Advanced Remote Datajack Field Lobotomy Kit [Rating: 175] Favorites ----------- Power Quantum Reactor Engine Light Ion Engine Power Core Light Nuclear Core Reactor Quantum Reactor Propulsion Light Treads Treads Light Treads Wheel Compact Wheel Utility Advanced Cooling System Device Advanced Cooling System Storage Huge Storage Unit Processor 0b10 Alert Chip Hackware Relay Coupler [Grunt] Protection Advanced Powered Armor Artifact Phase Armor Weapon Advanced Remote Datajack Energy Gun Heavy Quantum Rifle Energy Cannon Heavy Particle Cannon Ballistic Gun Assault Rifle Ballistic Cannon Improved Light Cannon Launcher Missile Launcher Special Weapon Advanced Remote Datajack Slashing Weapon Sigix Broadsword Build | -11 -10 -10 -10 -9 -8 -8 -8 -8 -7 -7 -7 -7 -7 -7 -6 -6 -5 -5 -5 -5 -4 -4 -4 -4 -3 -3 -3 -3 -3 -2 -2 ------- Run | Yrd Mat Min Exi Min Mat Gar Mat Gar Fac Was Fac Gar Fac Gar Fac Gar Fac Was Fac Gar Fac Was Fac Gar Res Gar Res Tes Gar Res Qua Slots Evolved 16 | . . . . . 4 . . . 2 . . . . . 2 . 2 . . . 2 . . . 2 . . . . 2 . Power 1 | . . . . . . . . . . . . . . . 1 . . . . . . . . . . . . . . . . Propulsion 4 | . . . . . 1 . . . 1 . . . . . . . . . . . 1 . . . 1 . . . . . . Utility 11 | . . . . . 3 . . . 1 . . . . . 1 . 2 . . . 1 . . . 1 . . . . 2 . Weapon . | . . . . . . . . . . . . . . . . . . . . . . . . . . . . . . . . Parts Attached 413 | 6 9 1 1 3 36 11 4 30 9 14 6 12 1 8 3 11 8 5 13 28 3 10 . 11 5 11 7 25 26 59 37 Power 41 | 1 1 1 . . 4 . . 7 1 1 . 1 . . 1 1 . 1 . 4 1 . . 2 . . . 1 6 4 3 Engine 9 | 1 1 . . . 2 . . 5 . . . . . . . . . . . . . . . . . . . . . . . Core 8 | . . 1 . . 2 . . 2 1 . . . . . . . . . . 2 . . . . . . . . . . . Reactor 24 | . . . . . . . . . . 1 . 1 . . 1 1 . 1 . 2 1 . . 2 . . . 1 6 4 3 Propulsion 64 | 2 3 . . 1 14 1 . 7 2 5 . . . 2 . . . 2 . 3 . 5 . . 3 . . 2 3 5 4 Treads 61 | 2 3 . . 1 14 1 . 7 2 5 . . . 2 . . . 2 . 3 . 5 . . 3 . . 2 3 5 1 Leg . | . . . . . . . . . . . . . . . . . . . . . . . . . . . . . . . . Wheel 3 | . . . . . . . . . . . . . . . . . . . . . . . . . . . . . . . 3 Hover . | . . . . . . . . . . . . . . . . . . . . . . . . . . . . . . . . Flight . | . . . . . . . . . . . . . . . . . . . . . . . . . . . . . . . . Utility 164 | 1 1 . 1 1 11 3 2 7 3 4 2 7 1 4 2 9 3 2 10 10 2 5 . 7 2 9 3 11 12 19 10 Device 61 | . . . 1 . 4 1 1 5 2 2 . 1 . 1 . 3 2 1 4 3 1 3 . 2 . 2 1 6 2 8 5 Storage 11 | 1 1 . . . . 1 . . . . . . . . . . . . . . . . . . 1 . . 2 1 2 2 Processor 4 | . . . . . 2 . . . . . 1 . . . . . . . . . . . . . . . . . . 1 . Hackware 60 | . . . . . 1 . . 1 1 1 1 6 1 3 2 6 . . 3 5 1 . . 4 1 6 1 2 8 5 1 Protection 27 | . . . . 1 4 1 1 1 . 1 . . . . . . 1 1 3 2 . 2 . 1 . 1 1 1 1 3 1 Artifact 1 | . . . . . . . . . . . . . . . . . . . . . . . . . . . . . . . 1 Weapon 144 | 2 4 . . 1 7 7 2 9 3 4 4 4 . 2 . 1 5 . 3 11 . . . 2 . 2 4 11 5 31 20 Energy Gun 14 | . . . . . . . . . 1 . . . . . . . . . . . . . . . . . . 6 2 5 . Energy Cannon 72 | . . . . . 4 3 . 4 1 2 3 1 . 1 . . 3 . 3 10 . . . 1 . . 3 4 1 16 12 Ballistic Gun 3 | 2 . . . . 1 . . . . . . . . . . . . . . . . . . . . . . . . . . Ballistic Cannon 12 | . 4 . . 1 1 2 1 3 . . . . . . . . . . . . . . . . . . . . . . . Launcher 13 | . . . . . 1 2 1 2 . 1 . 1 . . . . 1 . . . . . . 1 . . . . . 2 1 Special Weapon 29 | . . . . . . . . . 1 1 1 2 . 1 . 1 1 . . 1 . . . . . 2 1 1 2 8 6 Impact Weapon . | . . . . . . . . . . . . . . . . . . . . . . . . . . . . . . . . Slashing Weapon 1 | . . . . . . . . . . . . . . . . . . . . . . . . . . . . . . . 1 Piercing Weapon . | . . . . . . . . . . . . . . . . . . . . . . . . . . . . . . . . Special Melee Weapon . | . . . . . . . . . . . . . . . . . . . . . . . . . . . . . . . . Unidentified Prototypes 16 | . . . . . 1 . . . 1 . . . . . . . . . . . . . . . . . . 6 . 3 5 Parts Lost 60 | . . . . . 4 1 . 10 6 . . . . . . . . . . 5 1 . . 2 . . . 1 1 18 11 Power 11 | . . . . . . . . 4 . . . . . . . . . . . 2 . . . 1 . . . . . 3 1 Propulsion 15 | . . . . . 1 1 . 1 2 . . . . . . . . . . 1 . . . . . . . . . 4 5 Utility 31 | . . . . . 3 . . 4 4 . . . . . . . . . . 2 1 . . 1 . . . 1 1 9 5 Weapon 3 | . . . . . . . . 1 . . . . . . . . . . . . . . . . . . . . . 2 . Highest Loss Streak 6 | . . . . . 2 1 . 4 6 . . . . . . . . . . 2 1 . . 1 . . . 1 1 5 5 To Critical Strikes . | . . . . . . . . . . . . . . . . . . . . . . . . . . . . . . . . Average Slot Usage (%) 84 | . 85 85 94 100 96 89 90 93 98 81 84 83 84 84 83 85 87 73 77 80 79 83 84 83 81 84 84 83 80 73 70 Engine 1 | . 14 4 . . 4 . . 4 1 . . . . . . . . . . . . . . . . . . . . . . Core 2 | . . 9 14 14 4 9 9 4 5 3 . . . . . . . . . 3 . . . . . . . . . . . Reactor 5 | . . . . . . . . . . 3 7 7 7 7 13 13 11 11 11 4 6 10 10 10 9 9 9 9 9 7 7 Treads 18 | . 28 28 28 28 26 26 27 26 29 20 15 15 15 15 13 13 11 11 11 13 15 14 15 15 16 19 19 19 17 12 4 Device 13 | . . . 8 11 16 17 18 22 20 14 7 7 . 3 6 6 10 6 12 17 15 14 15 20 19 19 19 24 19 13 12 Storage 7 | . 14 14 14 14 9 9 9 9 7 7 7 7 7 7 6 6 5 5 5 5 5 5 5 5 4 4 4 4 4 4 4 Processor 2 | . . . . . 3 . . . . . 6 7 7 7 6 6 5 5 5 5 5 5 5 2 . . . . . 2 4 Hackware 12 | . . . . . 5 . . . 8 14 17 21 29 26 23 25 23 8 8 14 20 20 15 15 17 19 19 12 17 17 17 Protection 3 | . . . . 2 7 9 9 9 6 . 5 . . . . . 4 9 7 . . . 5 2 4 2 4 3 2 3 2 Energy Cannon 6 | . . . . . 16 11 9 11 12 7 8 7 7 8 6 6 5 5 5 4 5 5 5 4 4 4 3 . . 2 4 Ballistic Cannon 4 | . 27 28 28 28 1 5 9 5 . . . . . . . . . . . . . . . . . . . . . . . Special Weapon 3 | . . . . . . . . . 1 6 5 6 7 5 6 6 4 5 5 5 5 5 5 5 4 4 4 3 3 2 2 Peak Build Rating 175 | 6 10 11 14 14 28 31 35 34 40 66 70 71 70 75 85 93 100 110 115 119 117 131 131 133 146 147 148 168 162 175 170 Average Rating 82 | 4 8 10 12 14 24 29 33 30 38 52 68 69 69 71 82 87 98 107 111 106 111 127 131 131 143 144 146 155 153 161 122 On Entrance 77 | . 6 9 11 14 14 26 31 34 31 30 66 70 70 69 74 85 86 100 110 104 108 117 131 131 133 146 147 147 149 156 69 Naked Turns . | . . . . . . . . . . . . . . . . . . . . . . . . . . . . . . . . Heaviest Build 243 | 12 36 33 34 36 47 118 120 120 111 125 125 113 110 114 126 128 144 178 183 157 142 157 157 163 158 159 158 173 197 243 200 Greatest Support 235 | 40 40 40 40 40 66 63 60 60 80 140 140 140 140 140 140 140 140 140 140 140 130 180 180 180 220 220 220 220 235 235 155 Greatest Overweight (x) 43 | . . . . . . 1 1 1 2 1 . . . . . . 1 1 1 2 1 2 . 1 . . . 1 . 1 43 Average Overweight (x) . | . . . . . . . 1 1 1 . . . . . . . . . . . . . . . . . . . . . 3 Largest Inventory Capacity 30 | 8 15 15 15 15 15 25 25 25 25 25 25 25 25 25 25 25 25 25 25 25 25 25 25 25 25 25 25 25 30 30 25 Average Capacity 22 | 7 13 15 15 15 15 19 25 25 25 25 25 25 25 25 25 25 25 25 25 25 25 25 25 25 25 25 25 25 25 29 24 Most Carried 30 | 1 15 15 15 15 15 21 25 25 25 25 25 25 25 25 25 25 25 25 25 25 25 24 24 25 25 25 25 25 26 30 25 Average Carried 21 | . 11 15 14 15 14 17 22 24 24 24 24 24 23 24 24 24 23 24 22 24 23 23 23 24 23 24 23 24 24 24 18 Final Capacity 30 | 8 15 15 15 15 15 25 25 25 25 25 25 25 25 25 25 25 25 25 25 25 25 25 25 25 25 25 25 25 30 25 5 Final Carried 26 | 1 15 15 15 15 15 21 24 25 25 25 25 25 23 25 25 25 25 25 20 25 22 23 24 25 22 25 23 25 26 21 5 Class Distribution -------------------- 51% | Botlord-Mutant 26% | Mutant 19% | Bothacker-Mutant Dominant Class ---------------- Mutant | -10/Materials Mutant | -10/Mines Mutant | -10/Exiles Mutant | -9/Mines Mutant | -8/Materials Mutant | -8/Garrison Mutant | -8/Materials Bothacker-Mutant | -8/Garrison Bothacker-Mutant | -7/Factory Bothacker-Mutant | -7/Waste Bothacker-Mutant | -7/Factory Bothacker-Mutant | -7/Garrison Bothacker-Mutant | -7/Factory Bothacker-Mutant | -7/Garrison Botlord-Mutant | -6/Factory Botlord-Mutant | -6/Garrison Botlord-Mutant | -5/Factory Botlord-Mutant | -5/Waste Botlord-Mutant | -5/Factory Botlord-Mutant | -5/Garrison Botlord-Mutant | -4/Factory Botlord-Mutant | -4/Waste Botlord-Mutant | -4/Factory Botlord-Mutant | -4/Garrison Botlord-Mutant | -3/Research Botlord-Mutant | -3/Garrison Botlord-Mutant | -3/Research Botlord-Mutant | -3/Testing Botlord-Mutant | -3/Garrison Botlord-Mutant | -2/Research Botlord-Mutant | -2/Quarantine Resources | -11 -10 -10 -10 -9 -8 -8 -8 -8 -7 -7 -7 -7 -7 -7 -6 -6 -5 -5 -5 -5 -4 -4 -4 -4 -3 -3 -3 -3 -3 -2 -2 ----------- Run | Yrd Mat Min Exi Min Mat Gar Mat Gar Fac Was Fac Gar Fac Gar Fac Gar Fac Was Fac Gar Fac Was Fac Gar Res Gar Res Tes Gar Res Qua Matter Collected 9770 | 195 822 106 . 143 641 297 31 494 143 247 105 176 85 214 30 245 224 142 215 899 80 180 . 177 . 607 325 561 634 941 811 Remotely . | . . . . . . . . . . . . . . . . . . . . . . . . . . . . . . . . Salvage Created 17521 | 59 477 142 . 116 1647 540 63 730 229 1856 72 213 32 143 . . 250 207 323 1063 142 1059 . 681 . 452 521 1469 1411 2654 970 Parts 824 | 7 48 9 . 12 100 33 3 44 11 33 2 14 1 11 . . 14 5 31 42 6 19 . 26 . 28 22 74 57 122 50 Haulers Intercepted 7 | . 2 . . . 5 . . . . . . . . . . . . . . . . . . . . . . . . . . Recyclers Shooed 7 | . . . . 1 1 . . . 1 . . . . . . . . . 1 . . . . . . . . . . 3 . Parts Field Recycled . | . . . . . . . . . . . . . . . . . . . . . . . . . . . . . . . . Retrieved Matter . | . . . . . . . . . . . . . . . . . . . . . . . . . . . . . . . . Parts Self-Destructed . | . . . . . . . . . . . . . . . . . . . . . . . . . . . . . . . . Prevented . | . . . . . . . . . . . . . . . . . . . . . . . . . . . . . . . . Kills | -11 -10 -10 -10 -9 -8 -8 -8 -8 -7 -7 -7 -7 -7 -7 -6 -6 -5 -5 -5 -5 -4 -4 -4 -4 -3 -3 -3 -3 -3 -2 -2 ------- Run | Yrd Mat Min Exi Min Mat Gar Mat Gar Fac Was Fac Gar Fac Gar Fac Gar Fac Was Fac Gar Fac Was Fac Gar Res Gar Res Tes Gar Res Qua Combat Hostiles Destroyed 264 | . 13 7 . 6 31 25 2 22 4 6 1 8 . 2 . . 7 1 5 19 2 3 . 14 . 7 7 18 12 30 12 Guns 33 | . . . . . . . . . 3 . . . . . . . . . . . . . . . . . . 11 10 9 . Cannons 167 | . 13 7 . 6 26 10 . 16 1 3 . 4 . 2 . . 4 1 5 16 1 3 . 10 . 7 7 4 . 12 9 AOE 47 | . . . . . 4 15 2 6 . . . 4 . . . . 3 . . . 1 . . 3 . . . . . 7 2 Classes Destroyed 20 | 1 7 . . 1 4 1 . . . 2 . . . . . . . . 1 . . . . . . 1 . 2 . . . Worker 18 | . 1 . . . . . . . . . . . . . . . . . 1 . 4 . . . . . . 2 . 9 1 Builder 17 | . . . . . 3 . . . . . . . . . . . 1 . 1 . . . . . . . . . . 11 1 Tunneler 4 | 3 . . . . . . . . . . . . . . . . . . . . . . . . . . 1 . . . . Hauler 7 | . 2 . . . 5 . . . . . . . . . . . . . . . . . . . . . . . . . . Recycler 9 | . 1 . . . . . . . 2 . . . . . . . . . . . . . . . . . . 1 . 3 2 Operator 4 | . 2 . . . 2 . . . . . . . . . . . . . . . . . . . . . . . . . . Watcher 9 | . 3 . . . 5 . . . . . . . . 1 . . . . . . . . . . . . . . . . . Swarmer 64 | . 3 4 . 4 4 12 . 4 4 . . 4 . 2 . . 3 . . 4 . 1 . 7 . 3 . 4 1 . . Cutter 1 | . . . . . . . . . . . . . . . . . . . . . . . . . . 1 . . . . . Grunt 76 | . 10 3 . . 16 7 2 9 . . . 1 1 1 . . 1 . 1 8 . . . 4 . 2 . 2 3 4 1 Brawler 6 | . . . . . 2 . . 1 . . 1 . . . . . . . . 1 . . . . . . . . 1 . . Duelist 8 | . . . . . 1 1 . 1 . . . . . . . . 1 . . . . . . 2 . . 1 . . 1 . Researcher 1 | . . . . . . . . . . . . . . . . . . . . . . . . . . . . 1 . . . Sentry 15 | . . . . 2 7 . . 3 . . . . . . . . . . . . 1 . . . . . . 1 . 1 . Hunter 36 | . . . . . 1 2 . 1 . . . . . . . . 2 . . 1 1 . . 1 . . 3 5 5 14 . Programmer 54 | . . . . . . 3 . 3 . . . 3 . 1 . . . . 3 5 . . . . . 3 3 6 3 10 11 Q-Series 1 | . . . . . . . . . . . . . . . . . . . . . . . . . . . . 1 . . . Behemoth 5 | . . . . . . . . . . . . . . . . . . . 1 1 . . . 1 . . . . 1 1 . Compactor 10 | . . . . . . . . . . 6 . . . . . . . 1 . . . 3 . . . . . . . . . Thug 1 | . . . . . . . . . . 1 . . . . . . . . . . . . . . . . . . . . . Martyr 4 | . . . . . . . . . . 2 . . . . . . . . . . . 2 . . . . . . . . . Best Kill Streak 12 | 2 3 2 . 4 8 8 2 4 4 1 1 4 . 1 . . 3 1 2 4 6 3 . 4 . 3 3 4 3 12 4 Combat Bots Only 8 | . 3 2 . 4 6 8 2 4 4 1 1 4 . 1 . . 3 1 1 4 2 3 . 4 . 3 2 3 3 6 3 Max Kills in Single Turn 5 | 1 1 1 . 2 2 4 2 3 1 2 1 3 1 1 . . 3 1 1 1 3 1 . 3 . 1 1 1 1 5 1 Gunslinging . | . . . . . . . . . . . . . . . . . . . . . . . . . . . . . . . . Exploded 4 | . . . . . 2 4 2 3 . . . 3 . . . . 3 . . . 1 . . 3 . . . . . 2 1 Melee . | . . . . . . . . . . . . . . . . . . . . . . . . . . . . . . . . Uniques/NPCs Destroyed . | . . . . . . . . . . . . . . . . . . . . . . . . . . . . . . . . Combat | -11 -10 -10 -10 -9 -8 -8 -8 -8 -7 -7 -7 -7 -7 -7 -6 -6 -5 -5 -5 -5 -4 -4 -4 -4 -3 -3 -3 -3 -3 -2 -2 -------- Run | Yrd Mat Min Exi Min Mat Gar Mat Gar Fac Was Fac Gar Fac Gar Fac Gar Fac Was Fac Gar Fac Was Fac Gar Res Gar Res Tes Gar Res Qua Hostile Shots Fired 1801 | . 47 20 . 21 123 82 8 129 47 . . 54 9 48 2 41 29 . 72 110 12 . . 47 4 40 22 121 136 379 198 Missed 468 | . 9 6 . 4 34 20 1 29 9 . . 15 2 16 . 17 5 . 19 21 4 . . 10 1 14 8 30 35 98 61 Damage Taken 26691 | . 506 137 . 150 1370 941 76 1441 485 . 97 556 104 581 42 440 249 31 1043 1708 183 . . 1188 120 575 604 1721 2071 7521 2751 Core 2578 | . 46 45 . 28 148 35 . 129 34 . 5 95 . 57 19 35 16 . 64 232 . . . 10 23 64 24 118 99 455 797 Absorbed by Shields 2174 | . . . . . . 61 29 523 116 . . 122 . 44 . 80 93 . 38 250 . . . 16 . 149 . 237 231 . 185 Reduced by Siege Mode 1663 | . . . . . . . . . . . . 24 . 57 . . 24 . 38 184 . . . 45 . 12 . 133 311 748 87 Redirected to Core 458 | . . . . . . . . . . . . . . . . . . . . . . . . . . . . . . . 458 Redirected to Shielding 74 | . . . . . . . . . . . . . . . . . . . . . . . . . . . . . . . 74 Ignored by Resistances 336 | . . . . . . . . . . . . . . . . . . . 128 . . . . . . . . . . 83 125 Regen/Repaired (Parts) 4252 | . 63 . . . 118 . . . . 66 51 63 61 318 . 46 54 . . . . 390 . 630 41 274 386 809 453 359 70 Core Remaining (%) 75 | 100 . . . 52 . . . 43 . . . . . 72 . 93 . . . 68 . . . 99 . . . . 74 . . Volleys Fired 1674 | 8 55 13 . 14 112 48 3 63 15 127 16 37 23 41 2 29 28 56 63 131 12 38 17 52 9 88 49 113 171 168 73 Largest 2 | 2 2 2 . 2 2 2 2 2 2 2 1 2 1 2 1 1 2 1 1 1 1 1 1 1 1 1 1 1 1 2 2 Hottest 300 | 40 78 78 . 78 150 150 114 150 155 145 30 60 90 90 5 30 143 30 113 120 120 120 120 120 120 120 120 120 88 240 300 Shots Fired 2076 | 16 110 26 . 28 217 92 6 124 24 131 16 44 23 44 2 29 35 55 64 127 12 38 17 52 9 88 49 119 171 212 96 Gun 325 | 16 . . . . . . . . 6 . . . . . . . . . . . . . . . . . . 69 134 100 . Cannon 1371 | . 110 26 . 28 215 83 4 116 15 121 6 26 8 30 . 13 23 47 46 88 7 30 15 45 2 56 19 29 12 80 71 Launcher 37 | . . . . . 2 9 2 8 . . . 2 . . . . 1 . . . . . . 1 . . . . . 6 6 Special 343 | . . . . . . . . . 3 10 10 16 15 14 2 16 11 8 18 39 5 8 2 6 7 32 30 21 25 26 19 Kinetic 322 | 16 110 26 . 28 73 26 1 42 . . . . . . . . . . . . . . . . . . . . . . . Thermal 1308 | . . . . . 142 57 3 74 21 121 6 26 8 30 . 13 23 47 46 85 7 30 15 45 2 56 15 70 134 161 71 Explosive 37 | . . . . . 2 9 2 8 . . . 2 . . . . 1 . . . . . . 1 . . . . . 6 6 Electromagnetic 66 | . . . . . . . . . . . . . . . . . . . . 3 . . . . . . 4 28 12 19 . Robot Hit Streak 25 | 6 8 6 . 5 13 14 10 13 12 15 10 13 7 7 1 4 18 19 15 16 5 12 10 12 16 19 7 20 13 25 12 Robot Miss Streak 8 | 2 4 2 . 5 8 4 . 3 5 2 3 3 2 3 1 2 2 2 2 5 1 4 . 2 . 3 3 4 2 3 4 Penetration Max . | . . . . . . . . . . . . . . . . . . . . . . . . . . . . . . . . Secondary Targets . | . . . . . . . . . . . . . . . . . . . . . . . . . . . . . . . . Capacitor 627 | . . . . . . . . . . . . . . . . . . 25 35 83 7 30 15 45 2 56 19 98 146 66 . Shots Hit Robots 1368 | 9 59 17 . 12 123 51 6 77 18 101 9 29 13 23 1 15 29 43 40 95 9 30 2 36 7 61 33 79 131 150 60 Core Hits 502 | 3 21 9 . 7 67 38 6 34 10 20 . 8 1 5 . 1 11 7 12 26 10 10 1 22 . 13 10 27 36 68 19 Critical Kills 9 | . . . . . . . . . . 4 1 . . . . . . . . 2 . . . . . . . . . 1 1 Critical Parts Destroyed 3 | . . . . . . . . . . . . . . . . . . . . . . . . . . . . . . . 3 Critical Strikes 25 | . 6 2 . . 2 1 . 1 . 4 1 . . . . . . . . 2 . . . . . . . . . 1 5 Meltdown 9 | . . . . . . . . . . 4 1 . . . . . . . . 2 . . . . . . . . . 1 1 Destroy 4 | . . . . . . . . . . . . . . . . . . . . . . . . . . . . . . . 4 Blast 12 | . 6 2 . . 2 1 . 1 . . . . . . . . . . . . . . . . . . . . . . . Melee Attacks . | . . . . . . . . . . . . . . . . . . . . . . . . . . . . . . . . Impact . | . . . . . . . . . . . . . . . . . . . . . . . . . . . . . . . . Slashing . | . . . . . . . . . . . . . . . . . . . . . . . . . . . . . . . . Piercing . | . . . . . . . . . . . . . . . . . . . . . . . . . . . . . . . . Sneak Attacks . | . . . . . . . . . . . . . . . . . . . . . . . . . . . . . . . . Combat Hostiles . | . . . . . . . . . . . . . . . . . . . . . . . . . . . . . . . . Follow-up Attacks . | . . . . . . . . . . . . . . . . . . . . . . . . . . . . . . . . Damage Inflicted 48062 | 124 1313 395 . 344 3408 2370 341 2523 400 2583 123 915 86 567 20 109 830 1105 1178 2299 780 1238 45 1830 17 1556 736 3243 4674 9916 2994 Guns 9889 | 119 . . . . . . . . 119 . . . . . . . . . . . . . . . . . . 2249 4282 3120 . Cannons 29589 | . 1279 375 . 298 3141 1167 71 1819 281 2583 108 480 80 567 . 109 547 1105 1058 2299 253 1238 45 1397 . 1556 694 775 392 3280 2592 Explosions 7873 | . . . . . 223 1203 270 679 . . . 435 . . . . 213 . . . 527 . . 433 . . . 172 . 3316 402 Melee . | . . . . . . . . . . . . . . . . . . . . . . . . . . . . . . . . Ramming 711 | 5 34 20 . 46 44 . . 25 . . 15 . 6 . 20 . 70 . 120 . . . . . 17 . 42 47 . 200 . Kinetic 3842 | 119 1279 375 . 298 891 262 21 597 . . . . . . . . . . . . . . . . . . . . . . . Thermal 35633 | . . . . . 2294 905 50 1222 400 2583 108 480 80 567 . 109 547 1105 1058 2183 253 1238 45 1397 . 1556 572 2421 4282 7586 2592 Explosive 5883 | . . . . . 179 1203 270 679 . . . 435 . . . . 213 . . . 527 . . 433 . . . . . 1542 402 Electromagnetic 1993 | . . . . . . . . . . . . . . . . . . . . 116 . . . . . . 122 775 392 588 . Impact . | . . . . . . . . . . . . . . . . . . . . . . . . . . . . . . . . Slashing . | . . . . . . . . . . . . . . . . . . . . . . . . . . . . . . . . Piercing . | . . . . . . . . . . . . . . . . . . . . . . . . . . . . . . . . Highest Corruption 52 | . . . . . . 2 2 4 . . . 3 . 1 . . . 12 12 14 . . . . . 3 5 8 8 23 52 Average Corruption 9 | . . . . . . 1 2 2 . . . 2 . 1 . . . 11 12 13 . . . . . 2 4 6 8 8 26 Corruption Purged 3 | . . . . . . . . . . . . 3 . . . . . . . . . . . . . . . . . . . Corruption Blocked . | . . . . . . . . . . . . . . . . . . . . . . . . . . . . . . . . Effects 452 | . . . . . . 9 7 25 . . . 2 . 4 . . . 13 44 85 . . . . . 11 16 45 55 46 90 Message Errors 103 | . . . . . . 2 . 3 . . . . . 1 . . . 2 11 25 . . . . . 2 2 16 11 6 22 Matter Fused 99 | . . . . . . 1 1 2 . . . 1 . 1 . . . 3 6 15 . . . . . 4 4 8 16 12 25 Heat Flow Errors 64 | . . . . . . 2 1 4 . . . . . . . . . 3 6 13 . . . . . 2 2 5 9 1 16 Energy Discharges 51 | . . . . . . 3 3 6 . . . . . . . . . 1 8 7 . . . . . 1 4 3 6 3 6 Parts Rejected 7 | . . . . . . . . 1 . . . . . . . . . . . . . . . . . . . 1 1 4 . Parts Fused 4 | . . . . . . . . 1 . . . . . . . . . . . . . . . . . . . 1 1 1 . Data Loss (minor) 51 | . . . . . . . . 5 . . . 1 . . . . . 3 6 9 . . . . . 2 3 4 6 7 5 Data Loss (major) 20 | . . . . . . 1 . 1 . . . . . 2 . . . . . 7 . . . . . . 1 1 1 2 4 Misfires 22 | . . . . . . . 1 2 . . . . . . . . . . 3 2 . . . . . . . 6 . 5 3 Alerts 10 | . . . . . . . 1 . . . . . . . . . . . 2 1 . . . . . . . . 4 2 . Misdirections 1 | . . . . . . . . . . . . . . . . . . . . . . . . . . . . . . . 1 Weapon Failures 20 | . . . . . . . . . . . . . . . . . . 1 2 6 . . . . . . . . . 3 8 Overload Shots 10 | . . . . . . . . . . . . . 2 4 . . . . 4 . . . . . . . . . . . . Effects 2 | . . . . . . . . . . . . . . 1 . . . . 1 . . . . . . . . . . . . Heat Surge 2 | . . . . . . . . . . . . . . 1 . . . . 1 . . . . . . . . . . . . Overflow Damage 1299 | . 49 8 . 7 25 11 4 120 . . . 12 25 37 . . 36 . 63 62 . 36 . 35 . 52 2 3 8 560 144 Projectiles 838 | . 49 8 . 7 25 7 4 61 . . . 12 25 37 . . 2 . 56 62 . 36 . 19 . 52 2 3 8 254 109 Explosions 393 | . . . . . . 4 . 59 . . . . . . . . . . . . . . . 16 . . . . . 279 35 Melee 68 | . . . . . . . . . . . . . . . . . 34 . 7 . . . . . . . . . . 27 . Knockbacks 52 | . 8 6 . 5 17 3 . 10 . . . . . . . . 1 . . . . . . . . . . . . 2 . Impact 3 | . . . . . . . . . . . . . . . . . 1 . . . . . . . . . . . . 2 . Kinetic 47 | . 8 6 . 4 16 3 . 10 . . . . . . . . . . . . . . . . . . . . . . . Secondary 2 | . . . . 1 1 . . . . . . . . . . . . . . . . . . . . . . . . . . Self-Inflicted Damage 234 | . . . . . 17 30 . 65 . . . . . . . . . . . . . . . 35 . . . . . 87 . Shots 9 | . . . . . 2 1 . 2 . . . . . . . . . . . . . . . 1 . . . . . 3 . Rammed 66 | 2 5 6 . 4 10 . . 6 . . 2 . 1 . 1 . 3 . 9 . . . . . 1 . 4 3 1 8 . Targets Rammed 68 | 2 5 6 . 4 10 . . 6 . . 2 . 1 . 1 . 3 . 10 . . . . . 1 . 4 3 1 9 . Kicked . | . . . . . . . . . . . . . . . . . . . . . . . . . . . . . . . . Crushed 2 | . . . . . . . . . . . . . . . . . . . 1 . . . . . . . . . . 1 . Highest Temperature 492 | . 216 96 . 240 318 364 263 309 141 242 . . 80 272 . . . 256 492 248 135 324 111 309 34 351 217 195 232 192 324 Average Temperature 86 | . 59 39 . 98 91 104 76 116 50 81 . . 45 142 . . . 104 116 83 62 135 54 101 34 100 83 70 62 54 85 Received Heat Transfer 3748 | . 246 45 . 9 702 240 42 502 27 . 15 67 9 90 36 75 6 . 477 298 . . . 159 27 20 42 34 121 444 15 Effects 13 | . . . . . 1 1 . 3 . . . . . . . . . . 3 . . 1 . 2 . 1 . . 1 . . Shutdowns 2 | . . . . . . . . . . . . . . . . . . . 2 . . . . . . . . . . . . Energy Bleed 6 | . . . . . 1 1 . 1 . . . . . . . . . . . . . 1 . . . 1 . . 1 . . Interference 4 | . . . . . . . . 2 . . . . . . . . . . . . . . . 2 . . . . . . . Short Circuit 1 | . . . . . . . . . . . . . . . . . . . 1 . . . . . . . . . . . . Siege Activations 50 | . . . . . . . . . . . . 1 . 1 . . 1 . 3 6 1 1 . 1 . 2 1 6 8 11 7 Total Turns 658 | . . . . . . . . . . . . 24 . 13 . . 20 . 22 58 2 10 . 12 . 23 8 69 101 191 105 Longest Duration 40 | . . . . . . . . . . . . 24 . 13 . . 20 . 16 16 2 10 . 12 . 17 8 19 32 40 40 Robots Corrupted 9 | . . . . . . . . . . . . . . . . . 1 . . 1 . . . . . . . 2 2 3 . Combat Hostiles 5 | . . . . . . . . . . . . . . . . . . . . 1 . . . . . . . 2 2 . . Parts Fried 18 | . . . . . . . . . . . . . . . . . 1 . . 1 . . . . . . 1 3 1 11 . Impact Corruptions 9 | . . . . . . . . . . . . . . . . . 2 . 1 . . . . . . . . . . 6 . Robots Melted 13 | . . . . . 1 . . . . 4 1 . . . . . . . . 2 . . . 1 . . . 1 . 2 1 Combat Hostiles 12 | . . . . . 1 . . . . 3 1 . . . . . . . . 2 . . . 1 . . . 1 . 2 1 Parts Melted 57 | . . . . . 4 4 . 1 . 6 1 3 . 1 . . 2 . . 6 2 1 . 1 . 3 1 6 5 9 1 Heat Transferred 36324 | . . . . . 3430 1295 74 1682 682 3863 148 555 87 668 . 148 666 1517 962 2257 222 1073 37 1221 . 1258 444 2061 3883 6685 1406 Parts Sabotaged . | . . . . . . . . . . . . . . . . . . . . . . . . . . . . . . . . Parts Stolen . | . . . . . . . . . . . . . . . . . . . . . . . . . . . . . . . . Parts Stripped . | . . . . . . . . . . . . . . . . . . . . . . . . . . . . . . . . Power Chain Reactions 1 | . . . . . . . . . . . . . . . . . . . . . . . . . . . . 1 . . . Alert | -11 -10 -10 -10 -9 -8 -8 -8 -8 -7 -7 -7 -7 -7 -7 -6 -6 -5 -5 -5 -5 -4 -4 -4 -4 -3 -3 -3 -3 -3 -2 -2 ------- Run | Yrd Mat Min Exi Min Mat Gar Mat Gar Fac Was Fac Gar Fac Gar Fac Gar Fac Was Fac Gar Fac Was Fac Gar Res Gar Res Tes Gar Res Qua Peak Influence 1737 | 15 205 234 . 92 462 1149 559 822 431 116 396 1467 916 714 555 1311 969 347 160 1076 1266 461 36 1559 949 1737 1430 688 879 660 329 Initial 976 | . 9 38 . . 21 205 559 107 431 116 . 189 770 276 374 248 688 339 102 35 564 443 . 25 876 696 976 659 363 494 265 Average 457 | 4 101 62 . 38 281 798 352 497 346 31 132 942 561 565 465 889 755 337 93 494 879 272 23 961 848 1220 1209 418 588 335 204 Maximum Alert Level 5 | . 1 1 . . 2 4 2 3 2 . 1 4 3 3 2 4 3 1 . 3 4 2 . 4 3 5 4 2 3 2 1 Low Security (%) 30 | 100 95 93 . 100 13 . 48 14 . 100 75 1 . . . . . 3 100 18 . 34 100 12 . . . 1 . 24 43 Level 1 22 | . 4 6 . . 84 20 8 15 46 . 24 7 11 23 6 11 . 96 . 17 . 32 . 9 . . . 34 7 26 56 Level 2 24 | . . . . . 1 7 43 49 53 . . 19 69 56 93 12 49 . . 41 49 32 . 7 4 7 . 64 69 48 . Level 3 15 | . . . . . . 69 . 20 . . . 32 19 20 . 52 50 . . 22 11 . . 15 94 34 32 . 23 . . Level 4 6 | . . . . . . 2 . . . . . 37 . . . 23 . . . . 38 . . 54 . 39 67 . . . . Level 5 . | . . . . . . . . . . . . . . . . . . . . . . . . . . 18 . . . . . High Security . | . . . . . . . . . . . . . . . . . . . . . . . . . . . . . . . . Max Security . | . . . . . . . . . . . . . . . . . . . . . . . . . . . . . . . . Squads Dispatched 82 | . 5 . . . 5 . 1 . . . 4 . 5 . 3 . 7 . 7 . 2 . . . 1 . 8 13 . 13 8 Investigation 15 | . 3 . . . 1 . 1 . . . 1 . 1 . 2 . 1 . 2 . . . . . . . 1 . . 2 . Extermination 20 | . . . . . . . . . . . 1 . 1 . . . . . 1 . 1 . . . 1 . 2 3 . 5 5 Reinforcement 26 | . 2 . . . 4 . . . . . 1 . 2 . . . 3 . 1 . 1 . . . . . . 7 . 5 . Assault 8 | . . . . . . . . . . . . . 1 . 1 . 2 . 1 . . . . . . . 2 . . 1 . Garrison 13 | . . . . . . . . . . . 1 . . . . . 1 . 2 . . . . . . . 3 3 . . 3 Intercept . | . . . . . . . . . . . . . . . . . . . . . . . . . . . . . . . . Searches Triggered . | . . . . . . . . . . . . . . . . . . . . . . . . . . . . . . . . Construction Impeded 4 | . . . . . 1 . . . . . . . 1 . . . . . 1 . 1 . . . . . . . . . . Haulers Reinforced 7 | . . . . . . . . . . . 1 . . . . . 2 . . . . . . . . . . 2 . 2 . Active Scanning Responses . | . . . . . . . . . . . . . . . . . . . . . . . . . . . . . . . . Cargo Convoy Interrupts 1 | . . . . . . . . . . . . . . . . . . . 1 . . . . . . . . . . . . Alert ID Control Effect 24 | . . . . . . . . . . . . . . . . . . . . . . . . . . . . . 10 14 . Stealth | -11 -10 -10 -10 -9 -8 -8 -8 -8 -7 -7 -7 -7 -7 -7 -6 -6 -5 -5 -5 -5 -4 -4 -4 -4 -3 -3 -3 -3 -3 -2 -2 --------- Run | Yrd Mat Min Exi Min Mat Gar Mat Gar Fac Was Fac Gar Fac Gar Fac Gar Fac Was Fac Gar Fac Was Fac Gar Res Gar Res Tes Gar Res Qua Distress Signals 26 | . 1 1 . . 3 . . . . . 5 . 2 1 . . 3 . 1 2 . . 1 . . . 1 3 . 2 . Communications Jammed 185 | . . . . . . . . . . . . . . . . . . . . . . . . . 2 . 20 36 . 127 . Distress Signals 183 | . . . . . . . . . . . . . . . . . . . . . . . . . 1 . 20 35 . 127 . Times Spotted 723 | . 25 13 . 6 47 20 4 19 16 4 11 35 18 19 3 37 29 5 30 50 7 3 5 38 6 40 32 48 36 78 39 Peak Tracking Total 10 | . 4 3 . 4 10 4 3 4 7 2 4 7 4 6 2 5 4 2 8 5 4 1 2 8 2 5 4 9 8 7 7 Tactical Retreats 39 | . 5 5 . . . 2 1 2 1 . 1 1 . . . . 2 . . 2 1 . . 3 . . 1 6 1 1 4 Traps | -11 -10 -10 -10 -9 -8 -8 -8 -8 -7 -7 -7 -7 -7 -7 -6 -6 -5 -5 -5 -5 -4 -4 -4 -4 -3 -3 -3 -3 -3 -2 -2 ------- Run | Yrd Mat Min Exi Min Mat Gar Mat Gar Fac Was Fac Gar Fac Gar Fac Gar Fac Was Fac Gar Fac Was Fac Gar Res Gar Res Tes Gar Res Qua Traps Triggered 32 | . 1 . . . . 4 . 8 2 . 1 1 . . . 1 3 . 1 2 1 . . 1 . 1 2 2 . 1 . Indirectly . | . . . . . . . . . . . . . . . . . . . . . . . . . . . . . . . . Trap Hack Attempts . | . . . . . . . . . . . . . . . . . . . . . . . . . . . . . . . . Triggered . | . . . . . . . . . . . . . . . . . . . . . . . . . . . . . . . . Disarmed . | . . . . . . . . . . . . . . . . . . . . . . . . . . . . . . . . Reprogrammed . | . . . . . . . . . . . . . . . . . . . . . . . . . . . . . . . . Reused . | . . . . . . . . . . . . . . . . . . . . . . . . . . . . . . . . Traps Extracted . | . . . . . . . . . . . . . . . . . . . . . . . . . . . . . . . . Installed . | . . . . . . . . . . . . . . . . . . . . . . . . . . . . . . . . Triggered . | . . . . . . . . . . . . . . . . . . . . . . . . . . . . . . . . Machines | -11 -10 -10 -10 -9 -8 -8 -8 -8 -7 -7 -7 -7 -7 -7 -6 -6 -5 -5 -5 -5 -4 -4 -4 -4 -3 -3 -3 -3 -3 -2 -2 ---------- Run | Yrd Mat Min Exi Min Mat Gar Mat Gar Fac Was Fac Gar Fac Gar Fac Gar Fac Was Fac Gar Fac Was Fac Gar Res Gar Res Tes Gar Res Qua Machines Disabled 103 | . 2 . . 1 3 5 2 3 1 . . 6 6 3 . 5 3 . . 4 20 . 2 6 1 5 3 6 4 4 8 Max in Single Turn 13 | . 1 . . 1 2 2 1 1 1 . . 1 . 1 . 1 . . . 1 13 . 1 1 . 1 1 1 1 2 1 Garrison Access 3 | . . . . . . . . . . . . . . . . . 1 . 1 . . . . . . . 1 . . . . Garrison Relay 33 | . . . . . . 1 . 1 . . . 6 . 3 . 5 . . . 4 . . . 4 . 5 . . 4 . . Phase Generator 1 | . . . . . . . . . . . . . . . . . . . . . . . . 1 . . . . . . . Machines Repaired . | . . . . . . . . . . . . . . . . . . . . . . . . . . . . . . . . Machines Dismantled . | . . . . . . . . . . . . . . . . . . . . . . . . . . . . . . . . Machines Sabotaged . | . . . . . . . . . . . . . . . . . . . . . . . . . . . . . . . . Overloaded Fab Kills . | . . . . . . . . . . . . . . . . . . . . . . . . . . . . . . . . Hacking | -11 -10 -10 -10 -9 -8 -8 -8 -8 -7 -7 -7 -7 -7 -7 -6 -6 -5 -5 -5 -5 -4 -4 -4 -4 -3 -3 -3 -3 -3 -2 -2 --------- Run | Yrd Mat Min Exi Min Mat Gar Mat Gar Fac Was Fac Gar Fac Gar Fac Gar Fac Was Fac Gar Fac Was Fac Gar Res Gar Res Tes Gar Res Qua Machines Accessed 104 | . 9 . 2 . 9 3 4 3 3 . 6 4 7 2 2 2 5 . 5 3 . . 1 2 3 4 5 8 2 4 6 Terminals 76 | . 6 . . . 6 3 2 3 2 . 3 4 6 2 1 2 4 . 2 3 . . . 2 2 4 4 5 2 3 5 Fabricators 4 | . . . . . . . . . . . 1 . . . . . . . 1 . . . . . . . . 1 . 1 . Repair Stations 6 | . 1 . . . 1 . . . 1 . 1 . . . . . 1 . . . . . . . . . . . . . 1 Recycling Units 3 | . 2 . . . 1 . . . . . . . . . . . . . . . . . . . . . . . . . . Scanalyzers 2 | . . . . . . . 1 . . . . . . . . . . . . . . . . . . . . 1 . . . Garrison Access 11 | . . . . . 1 . 1 . . . 1 . 1 . 1 . . . 2 . . . 1 . 1 . 1 1 . . . Total Hacks 240 | . 24 . 2 . 21 6 10 7 4 . 15 12 22 5 3 4 13 . 10 10 . . 2 3 6 7 9 16 3 11 15 Successful 108 | . 9 . 2 . 14 2 7 3 . . 10 3 12 1 2 3 9 . 5 3 . . 2 . 3 1 4 8 . 3 2 Failed 131 | . 14 . . . 7 4 3 4 4 . 5 9 10 4 1 1 4 . 5 7 . . . 3 3 6 5 8 3 8 13 Catastrophic 34 | . 2 . . . 1 3 1 . 1 . 1 4 1 1 1 . 2 . 4 . . . . 2 2 1 1 . . 4 2 Database Lockouts 1 | . 1 . . . . . . . . . . . . . . . . . . . . . . . . . . . . . . Manual 89 | . 5 . 1 . 14 1 2 2 3 . 7 4 12 1 2 1 11 . 3 2 . . . . 4 . 2 5 . . 7 Terminals 178 | . 14 . . . 14 6 5 7 3 . 9 12 20 5 1 4 12 . 3 10 . . . 3 4 7 7 9 3 9 11 Fabricators 6 | . . . . . . . . . . . 1 . . . . . . . 1 . . . . . . . . 2 . 2 . Repair Stations 15 | . 5 . . . 2 . . . 1 . 2 . . . . . 1 . . . . . . . . . . . . . 4 Recycling Units 9 | . 5 . . . 4 . . . . . . . . . . . . . . . . . . . . . . . . . . Scanalyzers 7 | . . . . . . . 4 . . . . . . . . . . . . . . . . . . . . 3 . . . Garrison Access 23 | . . . . . 1 . 1 . . . 3 . 2 . 2 . . . 6 . . . 2 . 2 . 2 2 . . . Terminal Hacks 38 | . 3 . 2 . 2 2 2 2 . . 1 3 5 1 . 2 3 . . 2 . . . . . 1 2 3 . 1 1 Record 1 | . . . 1 . . . . . . . . . . . . . . . . . . . . . . . . . . . . Robot Schematic 1 | . 1 . . . . . . . . . . . . . . . . . . . . . . . . . . . . . . Open Door 3 | . . . . . . . . . . . . 1 . . . 1 . . . . . . . . . 1 . . . . . Level Access Points 1 | . . . . . . . . . . . . . . . . . 1 . . . . . . . . . . . . . . Branch Access Points 1 | . . . . . . . . . . . . . . . . . . . . . . . . . . . 1 . . . . Emergency Access Points 5 | . . . . . . 1 . 1 . . . . . . . 1 . . . 1 . . . . . . 1 . . . . Terminal Index 1 | . . . . . . . . . . . . . 1 . . . . . . . . . . . . . . . . . . Unreport Threat 12 | . . . . . 1 . 2 . . . . . 2 . . . 2 . . . . . . . . . . 3 . 1 1 Locate Traps 2 | . . . . . 1 . . . . . 1 . . . . . . . . . . . . . . . . . . . . Hauler Manifests 1 | . . . . . . . . . . . . . 1 . . . . . . . . . . . . . . . . . . Zone Layout 3 | . 2 . . . . . . . . . . . 1 . . . . . . . . . . . . . . . . . . Garrison Registry 1 | . . . . . . . . . . . . . . 1 . . . . . . . . . . . . . . . . . Patrol Navigation 3 | . . . . . . 1 . . . . . 1 . . . . . . . 1 . . . . . . . . . . . Security Stations 2 | . . . . . . . . 1 . . . 1 . . . . . . . . . . . . . . . . . . . Derelict Proto ID Bank 1 | . . . 1 . . . . . . . . . . . . . . . . . . . . . . . . . . . . Fabricator Hacks 5 | . . . . . . . . . . . 1 . . . . . . . . . . . . . . . . 2 . 2 . Network Status 1 | . . . . . . . . . . . 1 . . . . . . . . . . . . . . . . . . . . Load Schematic 2 | . . . . . . . . . . . . . . . . . . . . . . . . . . . . 1 . 1 . Build 2 | . . . . . . . . . . . . . . . . . . . . . . . . . . . . 1 . 1 . Repair Station Hacks 7 | . 3 . . . 2 . . . . . 2 . . . . . . . . . . . . . . . . . . . . Scan Component 4 | . 2 . . . 1 . . . . . 1 . . . . . . . . . . . . . . . . . . . . Repair 3 | . 1 . . . 1 . . . . . 1 . . . . . . . . . . . . . . . . . . . . Recycling Unit Hacks 2 | . 1 . . . 1 . . . . . . . . . . . . . . . . . . . . . . . . . . Retrieve Components 2 | . 1 . . . 1 . . . . . . . . . . . . . . . . . . . . . . . . . . Scanalyzer 4 | . . . . . . . 4 . . . . . . . . . . . . . . . . . . . . . . . . Insert Component 1 | . . . . . . . 1 . . . . . . . . . . . . . . . . . . . . . . . . Analyze 3 | . . . . . . . 3 . . . . . . . . . . . . . . . . . . . . . . . . Garrison Access Hacks 19 | . . . . . 1 . 1 . . . 2 . 2 . 1 . . . 4 . . . 2 . 2 . 2 2 . . . Unlock Access 10 | . . . . . 1 . 1 . . . 1 . 1 . 1 . . . 2 . . . 1 . 1 . . 1 . . . Seal Access 1 | . . . . . . . . . . . . . . . . . . . . . . . . . . . 1 . . . . Coupler Status 8 | . . . . . . . . . . . 1 . 1 . . . . . 2 . . . 1 . 1 . 1 1 . . . Unauthorized Hacks 33 | . 2 . . . 8 . . 1 . . 4 . 5 . 1 1 6 . 1 1 . . . . 1 . . 1 . . 1 Terminals 25 | . . . . . 7 . . 1 . . 3 . 5 . . 1 5 . . 1 . . . . 1 . . . . . 1 Track 1 | . . . . . . . . . . . . . . . . . 1 . . . . . . . . . . . . . . Assimilate 1 | . . . . . 1 . . . . . . . . . . . . . . . . . . . . . . . . . . Botnet 7 | . . . . . 1 . . 1 . . 1 . 1 . . 1 1 . . 1 . . . . . . . . . . . Operators 5 | . . . . . 1 . . . . . . . 1 . . . 1 . . . . . . . 1 . . . . . 1 Skim 11 | . . . . . 4 . . . . . 2 . 3 . . . 2 . . . . . . . . . . . . . . Fabricators . | . . . . . . . . . . . . . . . . . . . . . . . . . . . . . . . . Repair Stations 1 | . . . . . . . . . . . . . . . . . 1 . . . . . . . . . . . . . . Mechanics 1 | . . . . . . . . . . . . . . . . . 1 . . . . . . . . . . . . . . Recycling Units 3 | . 2 . . . 1 . . . . . . . . . . . . . . . . . . . . . . . . . . Reject 1 | . . . . . 1 . . . . . . . . . . . . . . . . . . . . . . . . . . Tunnel 2 | . 2 . . . . . . . . . . . . . . . . . . . . . . . . . . . . . . Scanalyzers 1 | . . . . . . . . . . . . . . . . . . . . . . . . . . . . 1 . . . Researchers 1 | . . . . . . . . . . . . . . . . . . . . . . . . . . . . 1 . . . Garrison Access 3 | . . . . . . . . . . . 1 . . . 1 . . . 1 . . . . . . . . . . . . Restock 1 | . . . . . . . . . . . . . . . . . . . 1 . . . . . . . . . . . . Eject 2 | . . . . . . . . . . . 1 . . . 1 . . . . . . . . . . . . . . . . Data Cores Recovered 2 | . . . . . . . . . . . 1 . . . . . 1 . . . . . . . . . . . . . . Used . | . . . . . . . . . . . . . . . . . . . . . . . . . . . . . . . . Hacking Detections 92 | . 8 . . . 7 3 3 3 3 . 5 4 7 2 1 2 5 . 5 3 . . 1 2 3 3 4 7 2 3 6 Full Trace Events 11 | . . . . . 1 . 1 1 . . . 1 . . . . . . 1 1 . . . 1 . 1 1 . . 2 . Feedback Events . | . . . . . . . . . . . . . . . . . . . . . . . . . . . . . . . . Feedback Blocked . | . . . . . . . . . . . . . . . . . . . . . . . . . . . . . . . . Robot Schematics Acquired 1 | . 1 . . . . . . . . . . . . . . . . . . . . . . . . . . . . . . Robots Built 2 | . . . . . . . . . . . . . . . . . . . . . . . . . . . . 1 . 1 . Authchips 2 | . . . . . . . . . . . . . . . . . . . . . . . . . . . . 1 . 1 . Time 54 | . . . . . . . . . . . . . . . . . . . . . . . . . . . . 27 . 27 . Total Robot Build Rating 2 | . . . . . . . . . . . . . . . . . . . . . . . . . . . . 1 . 1 . Part Schematics Acquired 1 | . . . . . . . 1 . . . . . . . . . . . . . . . . . . . . . . . . Parts Built . | . . . . . . . . . . . . . . . . . . . . . . . . . . . . . . . . Authchips . | . . . . . . . . . . . . . . . . . . . . . . . . . . . . . . . . Time . | . . . . . . . . . . . . . . . . . . . . . . . . . . . . . . . . Total Part Build Rating . | . . . . . . . . . . . . . . . . . . . . . . . . . . . . . . . . Parts Repaired 3 | . 1 . . . 1 . . . . . 1 . . . . . . . . . . . . . . . . . . . . Time 80 | . 26 . . . 19 . . . . . 35 . . . . . . . . . . . . . . . . . . . . Parts Recycled . | . . . . . . . . . . . . . . . . . . . . . . . . . . . . . . . . Recycled Matter . | . . . . . . . . . . . . . . . . . . . . . . . . . . . . . . . . Retrieved Matter . | . . . . . . . . . . . . . . . . . . . . . . . . . . . . . . . . Retrieved Components 9 | . 9 . . . . . . . . . . . . . . . . . . . . . . . . . . . . . . Parts Scanalyzed 1 | . . . . . . . 1 . . . . . . . . . . . . . . . . . . . . . . . . Part Schematics Acquired 1 | . . . . . . . 1 . . . . . . . . . . . . . . . . . . . . . . . . Parts Damaged . | . . . . . . . . . . . . . . . . . . . . . . . . . . . . . . . . Bothacking | -11 -10 -10 -10 -9 -8 -8 -8 -8 -7 -7 -7 -7 -7 -7 -6 -6 -5 -5 -5 -5 -4 -4 -4 -4 -3 -3 -3 -3 -3 -2 -2 ------------ Run | Yrd Mat Min Exi Min Mat Gar Mat Gar Fac Was Fac Gar Fac Gar Fac Gar Fac Was Fac Gar Fac Was Fac Gar Res Gar Res Tes Gar Res Qua Used RIF Installer 10 | . . . . . . 1 . 1 . . . 1 . 1 . 1 . . . 2 . . . 1 . 1 . . 1 . . Hotswap 1 | . . . . . . . . . . . . 1 . . . . . . . . . . . . . . . . . . . Code Merge 1 | . . . . . . . . . . . . . . . . . . . . . . . . . . 1 . . . . . Watcher Feeds 1 | . . . . . . . . . . . . . . . . . . . . 1 . . . . . . . . . . . Patrol Navigation 1 | . . . . . . . . . . . . . . . . 1 . . . . . . . . . . . . . . . Alert ID Control 1 | . . . . . . . . . . . . . . . . . . . . . . . . . . . . . 1 . . Structural Interface 1 | . . . . . . . . 1 . . . . . . . . . . . . . . . . . . . . . . . Program Shield 1 | . . . . . . . . . . . . . . 1 . . . . . . . . . . . . . . . . . Autooverride 1 | . . . . . . . . . . . . . . . . . . . . . . . . 1 . . . . . . . Autoassimilate 1 | . . . . . . . . . . . . . . . . . . . . 1 . . . . . . . . . . . Robots Hacked 227 | . . . . . . . . . 2 6 5 7 8 8 1 10 8 6 12 22 2 6 1 7 3 22 20 17 20 28 6 Non-combat 26 | . . . . . . . . . 2 . 2 . 3 1 . . 2 . . . 1 . . . 1 . 5 2 . 3 4 Combat 201 | . . . . . . . . . . 6 3 7 5 7 1 10 6 6 12 22 1 6 1 7 2 22 15 15 20 25 2 Autooverrided 19 | . . . . . . . . . . . . . . . . . . . . . . . . 3 . 5 2 2 2 5 . Autoassimilated 27 | . . . . . . . . . . . . . . . . . . . . 1 1 . . 1 . 5 2 3 4 9 1 Robot Hacks Applied 208 | . . . . . . . . . 2 7 6 8 11 8 1 10 8 6 13 21 1 6 1 3 7 14 20 12 17 17 9 parse_system 3 | . . . . . . . . . . . 1 . . . . . . . . . . . . . . . . . 1 . 1 find_chute 3 | . . . . . . . . . 1 . . . . . . . 1 . . . 1 . . . . . . . . . . drop_inventory 8 | . . . . . . . . . . . 2 . 1 . . . . . . . . . . . . . 1 1 . 2 1 recall_reinforcements 1 | . . . . . . . . . . . 1 . . . . . . . . . . . . . . . . . . . . find_recycling 1 | . . . . . . . . . . . . . . . . . . . . . . . . . . . 1 . . . . purge_threat 13 | . . . . . . . . . . . . . 3 . . . . . . . . . . . 4 . 3 . . 2 1 block_reporting 6 | . . . . . . . . . 1 . . . . . . . . . . . . . . . 1 . 1 . . . 3 disable_scanner 2 | . . . . . . . . . . . . . . . . . . . . . . . . . . . . 2 . . . ignore_targets 18 | . . . . . . . . . . 6 . . . . . . . 6 . . . 6 . . . . . . . . . find_garrison 4 | . . . . . . . . . . . 1 . . . . . 1 . 2 . . . . . . . . . . . . link_fov 1 | . . . . . . . . . . 1 . . . . . . . . . . . . . . . . . . . . . mark_system 1 | . . . . . . . . . . . . . . . . . . . . . . . . . . . . . 1 . . disrupt_area 1 | . . . . . . . . . . . . . . . . . . . . . . . . . . 1 . . . . . amplify_resonance 27 | . . . . . . . . . . . . 2 1 4 . 3 2 . . 4 . . . 2 . 4 . 2 2 1 . disable_weapons 1 | . . . . . . . . . . . . . . . . . . . . . . . . . . . . . 1 . . reboot_system 1 | . . . . . . . . . . . . . . . . . . . . . . . . . . . 1 . . . . overwrite_iff 42 | . . . . . . . . . . . . 2 3 4 . 3 1 . 5 6 . . . 1 . 2 3 1 7 4 . formatsys_low 10 | . . . . . . . . . . . . . 1 . . . 1 . . . . . . . . . 3 1 . 1 3 formatsys_high 63 | . . . . . . . . . . . 1 4 1 . 1 4 2 . 6 11 . . 1 . 2 7 6 5 5 7 . formatsys_deep 2 | . . . . . . . . . . . . . 1 . . . . . . . . . . . . . 1 . . . . Relay Couplers Released 149 | . . . . . . 5 . 4 . . 3 23 . 12 3 20 . . 5 14 . . . 18 . 20 3 . 19 . . Ejected 6 | . . . . . . . . . . . 3 . . . 3 . . . . . . . . . . . . . . . . Machine Destruction 139 | . . . . . . 5 . 4 . . . 23 . 12 . 20 . . 1 14 . . . 18 . 20 3 . 19 . . Programmers 4 | . . . . . . . . . . . . . . . . . . . 4 . . . . . . . . . . . . Attached 53 | . . . . . . . . 1 1 1 1 6 . 3 1 6 . . 3 5 1 . . 4 . 6 1 . 8 4 1 Merged Code Value 174 | . . . . . . . . . . . . . . . . . . . . . . . . . . 53 9 . 112 . . Fabnet Peak Effective % . | . . . . . . . . . . . . . . . . . . . . . . . . . . . . . . . . Robots Rewired 13 | . . . . . . . . . . . . 3 . . . . . . . 6 2 . . . . 2 . . . . . Allies Hacked 3 | . . . . . . . . . . . . . . . . . . . . . . . . . . 1 . . . 2 . Hacks Repelled . | . . . . . . . . . . . . . . . . . . . . . . . . . . . . . . . . Allies | -11 -10 -10 -10 -9 -8 -8 -8 -8 -7 -7 -7 -7 -7 -7 -6 -6 -5 -5 -5 -5 -4 -4 -4 -4 -3 -3 -3 -3 -3 -2 -2 -------- Run | Yrd Mat Min Exi Min Mat Gar Mat Gar Fac Was Fac Gar Fac Gar Fac Gar Fac Was Fac Gar Fac Was Fac Gar Res Gar Res Tes Gar Res Qua Total Allies 230 | . . . . . . . . . . 19 1 11 8 6 1 8 4 . 11 24 3 19 1 5 2 23 21 13 18 26 6 Largest Group 31 | . . . . . . . . . . 19 17 14 13 11 8 11 10 4 3 14 15 31 29 29 12 11 14 6 5 7 4 Highest-Rated Group 1179 | . . . . . . . . . . 465 380 411 359 391 359 470 438 202 153 566 613 1179 1115 1115 544 617 723 250 255 392 333 Highest-Rated Ally 178 | . . . . . . . . . . 35 31 32 32 95 95 95 95 78 78 51 51 51 51 51 64 80 80 64 116 178 143 Total Orders 41 | . . . . . . . . . . . . . 1 2 . . . . . 2 . . . . 1 . 5 6 15 7 2 STAY 18 | . . . . . . . . . . . . . . 1 . . . . . 1 . . . . 1 . 1 2 8 3 1 ROAM 2 | . . . . . . . . . . . . . . . . . . . . 1 . . . . . . . . . 1 . FOLLOW 7 | . . . . . . . . . . . . . . 1 . . . . . . . . . . . . 1 1 3 . 1 AID 14 | . . . . . . . . . . . . . 1 . . . . . . . . . . . . . 3 3 4 3 . Ally Attacks 1469 | . . . . . . . . . . . 156 134 102 33 16 87 60 53 41 66 51 63 3 185 33 67 90 51 68 87 23 Total Damage 42904 | . . . . . . . . . . . 1851 2739 2385 910 359 3390 2012 2171 1319 1914 1417 2492 17 5106 777 1869 3997 1417 1938 3885 939 Kills 293 | . . . . . . . . . . . 20 28 22 11 6 29 27 5 8 14 13 3 . 29 4 15 21 8 10 15 5 Allies Corrupted 9 | . . . . . . . . . . . . . . . . 1 . . 3 . . . . . . . . 3 . 2 . Allies Melted 1 | . . . . . . . . . . 1 . . . . . . . . . . . . . . . . . . . . . Field Lobotomies 2 | . . . . . . . . . . . . . . . . . . . . . . . . . . . . . . . 2 Intel | -11 -10 -10 -10 -9 -8 -8 -8 -8 -7 -7 -7 -7 -7 -7 -6 -6 -5 -5 -5 -5 -4 -4 -4 -4 -3 -3 -3 -3 -3 -2 -2 ------- Run | Yrd Mat Min Exi Min Mat Gar Mat Gar Fac Was Fac Gar Fac Gar Fac Gar Fac Was Fac Gar Fac Was Fac Gar Res Gar Res Tes Gar Res Qua Robot Analysis Total . | . . . . . . . . . . . . . . . . . . . . . . . . . . . . . . . . Derelict Logs Recovered 3 | . . 1 . 2 . . . . . . . . . . . . . . . . . . . . . . . . . . . Drone Launches . | . . . . . . . . . . . . . . . . . . . . . . . . . . . . . . . . Drone Recoveries . | . . . . . . . . . . . . . . . . . . . . . . . . . . . . . . . . Exploration | -11 -10 -10 -10 -9 -8 -8 -8 -8 -7 -7 -7 -7 -7 -7 -6 -6 -5 -5 -5 -5 -4 -4 -4 -4 -3 -3 -3 -3 -3 -2 -2 ------------- Run | Yrd Mat Min Exi Min Mat Gar Mat Gar Fac Was Fac Gar Fac Gar Fac Gar Fac Was Fac Gar Fac Was Fac Gar Res Gar Res Tes Gar Res Qua Turns Passed 34356 | 134 1862 1215 343 745 3114 1235 771 1505 741 1455 813 1157 900 749 415 1114 965 415 1089 1954 255 1213 248 1039 668 1061 769 1602 1558 1638 1614 Spaces Moved 15924 | 63 973 722 213 432 1204 538 313 502 281 642 453 649 371 389 241 642 543 83 409 939 116 392 98 473 332 599 430 738 803 700 641 Core 43 | 3 . . . . . . . . . . . . . . . . . . . . . . . . . . . . . . 40 Treads 15442 | 60 973 722 213 432 1204 538 313 502 281 642 453 649 371 389 241 642 543 83 409 939 116 392 98 473 332 599 430 738 803 700 162 Legs . | . . . . . . . . . . . . . . . . . . . . . . . . . . . . . . . . Wheels 439 | . . . . . . . . . . . . . . . . . . . . . . . . . . . . . . . 439 Hover . | . . . . . . . . . . . . . . . . . . . . . . . . . . . . . . . . Flight . | . . . . . . . . . . . . . . . . . . . . . . . . . . . . . . . . Fastest Speed 50 | 50 160 160 160 160 160 160 240 240 240 160 160 160 160 160 160 160 160 160 160 160 166 160 160 160 152 152 152 152 152 152 50 Average Speed 173 | 154 160 160 160 160 160 192 240 240 241 177 160 160 160 160 160 160 161 210 226 177 202 194 160 193 157 152 152 162 155 157 196 Slowest Speed 2200 | 160 160 160 160 160 160 240 240 240 320 240 160 160 160 160 160 160 240 240 240 360 270 360 160 245 160 152 152 245 160 241 2200 Overloaded Moves . | . . . . . . . . . . . . . . . . . . . . . . . . . . . . . . . . Propulsion Burnouts . | . . . . . . . . . . . . . . . . . . . . . . . . . . . . . . . . Robots Hopped 1 | . . . . . . . . . . . . . . . . . . . . . . . . 1 . . . . . . . Cave-ins Triggered . | . . . . . . . . . . . . . . . . . . . . . . . . . . . . . . . . Teleports 1 | . . . . . . . . . . . . . . . . . . . . . . . . . . . . . . . 1 Exploration Rate (%) 56 | 5 98 98 60 93 84 75 29 90 7 96 22 91 16 59 8 96 20 71 14 91 6 91 7 75 15 94 20 88 97 31 67 Regions Visited 31 Branch Regions 5 Pre-discovered Areas 5 | . 2 1 1 1 . . . . . . . . . . . . . . . . . . . . . . . . . . . Known Exits Taken 11 | . . . . . 1 . 1 . . . 1 . 1 . 1 . . . 1 . . . 1 . 1 . 1 1 . 1 . Unknown Exits Taken 5 | 1 1 1 1 1 . . . . . . . . . . . . . . . . . . . . . . . . . . . Scrap Searched 2 | . . 1 . 1 . . . . . . . . . . . . . . . . . . . . . . . . . . . Spaces Dug 49 | . . . . 1 6 7 . . . . . . 1 . . . . . 11 2 . . . . 2 3 . . 8 7 1 Terrain Destroyed 482 | . 7 2 . 3 96 18 12 7 1 . . 14 2 . . . 12 3 16 10 31 1 . 10 2 9 1 19 21 109 76 Melee . | . . . . . . . . . . . . . . . . . . . . . . . . . . . . . . . . Projectile 191 | . 7 2 . 3 51 . . . 1 . . . 2 . . . 2 3 16 10 . 1 . 6 2 9 1 9 21 28 17 AOE 291 | . . . . . 45 18 12 7 . . . 14 . . . . 10 . . . 31 . . 4 . . . 10 . 81 59 Terrain Rammed . | . . . . . . . . . . . . . . . . . . . . . . . . . . . . . . . . Walls Destroyed . | . . . . . . . . . . . . . . . . . . . . . . . . . . . . . . . . Machines Disabled . | . . . . . . . . . . . . . . . . . . . . . . . . . . . . . . . . Actions | -11 -10 -10 -10 -9 -8 -8 -8 -8 -7 -7 -7 -7 -7 -7 -6 -6 -5 -5 -5 -5 -4 -4 -4 -4 -3 -3 -3 -3 -3 -2 -2 --------- Run | Yrd Mat Min Exi Min Mat Gar Mat Gar Fac Was Fac Gar Fac Gar Fac Gar Fac Was Fac Gar Fac Was Fac Gar Res Gar Res Tes Gar Res Qua Total 21521 | 79 1164 753 216 458 2176 646 326 666 320 833 532 738 662 482 268 724 607 306 540 1221 138 840 189 596 479 754 543 1145 1118 1098 904 Wait 2964 | . 104 11 . 1 781 24 1 39 8 30 44 15 263 24 19 18 16 153 40 83 7 393 74 44 124 30 43 228 86 139 122 Move 15901 | 62 972 721 212 431 1204 537 313 501 281 641 453 648 371 388 240 641 543 82 409 938 116 391 97 470 332 598 429 738 802 699 641 Hop 1 | . . . . . . . . . . . . . . . . . . . . . . . . 1 . . . . . . . Pick Up 192 | 1 13 . 2 1 6 14 3 7 4 7 6 12 1 12 2 9 5 1 3 19 . 3 1 10 3 12 4 10 8 4 9 Fast Attach 114 | 6 1 . . 1 16 2 . 4 2 6 . . . 1 1 4 1 3 . 6 . 2 . 2 3 1 2 12 11 13 14 Attach 84 | . . . 1 . 2 2 1 10 3 3 . 1 . 1 2 1 2 1 3 5 3 1 . 2 2 1 . 5 3 19 10 Detach 54 | . 1 . . . 2 1 1 . . 2 . . . 1 . 2 . 4 . 2 . 2 . 1 1 1 . 7 5 14 7 Swap 217 | . 8 1 . 2 18 7 3 16 4 5 6 11 1 6 . 6 5 1 10 17 . 7 . 7 . 9 5 8 12 27 15 Drop 207 | . 5 1 1 4 25 7 1 8 3 12 5 11 1 8 . 13 3 5 1 13 . 3 . 7 4 8 4 19 17 6 12 Fire 1674 | 8 55 13 . 14 112 48 3 63 15 127 16 37 23 41 2 29 28 56 63 131 12 38 17 52 9 88 49 113 171 168 73 Melee . | . . . . . . . . . . . . . . . . . . . . . . . . . . . . . . . . Ram . | . . . . . . . . . . . . . . . . . . . . . . . . . . . . . . . . Kick . | . . . . . . . . . . . . . . . . . . . . . . . . . . . . . . . . Crush 67 | 2 5 6 . 4 10 . . 6 . . 2 . 1 . 1 . 3 . 10 . . . . . 1 . 4 2 1 9 . Escape Stasis 17 | . . . . . . 4 . 12 . . . . . . . . . . . . . . . . . . . . 1 . . Rewire 29 | . . . . . . . . . . . . 3 1 . 1 1 1 . 1 7 . . . . . 6 3 3 1 . 1 Trap . | . . . . . . . . . . . . . . . . . . . . . . . . . . . . . . . . Miscellaneous . | . . . . . . . . . . . . . . . . . . . . . . . . . . . . . . . . Route ------- -11/Scrapyard -10/Materials (discovered 5 exits: [*Mat x3] / [*Min] / [*Sub]) -10/Mines (discovered 3 exits: [*Mat x2] / *Exi) -10/Exiles -9/Mines -8/Materials (discovered 4 exits: *Fac x2 / [*Sto] / Gar) -8/Garrison (discovered 2 exits: *Mat x2) -8/Materials (discovered 2 exits: *Fac / Gar) -8/Garrison -7/Factory -7/Waste -7/Factory (discovered 2 exits: *Fac / Gar) -7/Garrison (discovered 3 exits: *Fac x3) -7/Factory (discovered 2 exits: *Fac / Gar) -7/Garrison (discovered 3 exits: *Fac x3) -6/Factory -6/Garrison (discovered 3 exits: *Fac x3) -5/Factory (discovered 6 exits: Fac x4 / [*Upp] / [*Ext]) -5/Waste -5/Factory -5/Garrison (discovered 3 exits: *Fac x3) -4/Factory -4/Waste -4/Factory (discovered 3 exits: [*Upp x2] / Gar) -4/Garrison (discovered 2 exits: *Res x2) -3/Research (discovered 2 exits: *Res / Gar) -3/Garrison (discovered 3 exits: *Res x3) -3/Research (discovered 4 exits: *Res / Arm / *Tes x2) -3/Testing (discovered 2 exits: *Res / Gar) -3/Garrison (discovered 3 exits: *Res x3) -2/Research (discovered 2 exits: *Acc / *Qua) -2/Quarantine (discovered 1 exit: *Acc) History --------- Turn | Location | Event 31 | -11/Scrapyard | Discovered new exit (range 16) 135 | -11/Scrapyard | Entered Materials 311 | -10/Materials | Build established: Mutant 414 | -10/Materials | Discovered new exit (range 7) 522 | -10/Materials | Central database locked down 882 | -10/Materials | Discovered new exit (range 15) 911 | -10/Materials | Discovered new exit (range 13) 1120 | -10/Materials | Discovered new exit (range 16) 1135 | -10/Materials | Derelicts attacked the area 1411 | -10/Materials | Discovered new exit (range 16) 1836 | -10/Materials | Repaired Lgt. Treads 1997 | -10/Materials | Entered Mines 2081 | -10/Mines | Discovered new exit (range 8) 2132 | -10/Mines | Learned location of Storage (-8) 2233 | -10/Mines | Discovered new exit (range 13) 2399 | -10/Mines | Learned 2 Materials zone layouts 2463 | -10/Mines | A weapon hastily lodged in a ceiling crevice suddenly fell to the ground 2717 | -10/Mines | Deemed a non-threat by the Exiles lab entrance 2717 | -10/Mines | Discovered new exit (range 5) 3212 | -10/Mines | Entered Exiles 3252 | -10/Exiles | Met 8R-AWN 3278 | -10/Exiles | Met EX-HEX 3324 | -10/Exiles | Met EX-BIN 3347 | -10/Exiles | Aligned with FarCom system 3348 | -10/Exiles | Given EX-Vault access code 3388 | -10/Exiles | Opened EX-Vault 3396 | -10/Exiles | Found 0b10 Alert Chip 3401 | -10/Exiles | Found Field Lobotomy Kit 3435 | -10/Exiles | Warned to stay clear of 0b10 Research branches 3482 | -10/Exiles | Met EX-DEC 3488 | -10/Exiles | Learned location of Zion (-7) 3534 | -10/Exiles | Discovered new exit (range 14) 3555 | -10/Exiles | Stole two prototypes: 0b10 Alert Chip, Field Lobotomy Kit 3555 | -10/Exiles | Entered Mines 4051 | -9/Mines | Found a hidden stash of uninstalled traps 4064 | -9/Mines | Received a Rocket Launcher from a helpful Derelict 4149 | -9/Mines | Learned location of 1 exit from Materials 4266 | -9/Mines | Discovered new exit (range 16) 4300 | -9/Mines | Entered Materials 4300 | -8/Materials | Evolved 4 slots: Propulsion x1, Utility x3 4301 | -8/Materials | Identified exit to Factory 4538 | -8/Materials | Discovered new exit (range 16) 4838 | -8/Materials | Build established: Scavenger-Mutant 5395 | -8/Materials | Build established: Mutant 5671 | -8/Materials | Repaired Hvy. Particle Cannon 6435 | -8/Materials | Discovered exit to Factory (range 16) 6872 | -8/Materials | Identified exit to Garrison 7414 | -8/Materials | Entered Garrison 7500 | -8/Garrison | Triggered checkpoint 7568 | -8/Garrison | Installed Relay Interface Framework 7704 | -8/Garrison | Triggered checkpoint 7720 | -8/Garrison | Triggered checkpoint 7741 | -8/Garrison | Destroyed 8 combat bots 7749 | -8/Garrison | Triggered checkpoint 7884 | -8/Garrison | Discovered new exit (range 12) 7934 | -8/Garrison | Triggered checkpoint 8010 | -8/Garrison | Garrison Relay disabled 8330 | -8/Garrison | Triggered checkpoint 8623 | -8/Garrison | Discovered new exit (range 8) 8649 | -8/Garrison | Entered Materials 8996 | -8/Materials | Discovered exit to Factory (range 12) 9420 | -8/Materials | Identified exit to Garrison 9420 | -8/Materials | Entered Garrison 9491 | -8/Garrison | Learned Factory security intel 9869 | -8/Garrison | Triggered checkpoint 9918 | -8/Garrison | Build established: Scavenger-Mutant 9956 | -8/Garrison | Triggered checkpoint 10289 | -8/Garrison | Expanded RIF knowledge: Structural Interface 10371 | -8/Garrison | Build established: Bothacker-Mutant 10384 | -8/Garrison | Triggered checkpoint 10508 | -8/Garrison | Lost 4 parts (2p1u1w) 10607 | -8/Garrison | Triggered checkpoint 10608 | -8/Garrison | Core integrity fell below 50% 10747 | -8/Garrison | Discovered exit to Factory (range 5) 10796 | -8/Garrison | Triggered checkpoint 10848 | -8/Garrison | Garrison Relay disabled 10925 | -8/Garrison | Entered Factory 10925 | -7/Factory | Evolved 2 slots: Propulsion x1, Utility x1 10927 | -7/Factory | FarCom data flow suspended 11666 | -7/Factory | Sucked down chute 11666 | -7/Factory | Entered Waste 11676 | -7/Waste | Lost 6 parts (2n4u) 11714 | -7/Waste | Spotted C-40 Crusher 11730 | -7/Waste | Spotted C-40 Crusher 11736 | -7/Waste | Spotted C-40 Crusher 11781 | -7/Waste | Spotted C-40 Crusher 11790 | -7/Waste | Spotted C-40 Crusher 11917 | -7/Waste | Discovered new exit (range 12) 12006 | -7/Waste | Spotted C-40 Crusher 12045 | -7/Waste | Destroyed C-40 Crusher 12076 | -7/Waste | Destroyed C-40 Crusher 12218 | -7/Waste | Destroyed C-40 Crusher 12405 | -7/Waste | Destroyed C-40 Crusher 12448 | -7/Waste | Destroyed C-40 Crusher 12503 | -7/Waste | Destroyed C-40 Crusher 12877 | -7/Waste | Warlord forces began an assault 13121 | -7/Waste | Entered Factory 13121 | -7/Factory | Accompanied by 16 allies 13699 | -7/Factory | Repaired Cld. Particle Cannon 13757 | -7/Factory | Discovered new exit (range 12) 13880 | -7/Factory | Garrison activated, responded to threat 13912 | -7/Factory | Lost 4 allies 13933 | -7/Factory | Identified exit to Garrison 13934 | -7/Factory | Entered Garrison 13934 | -7/Garrison | Accompanied by 10 allies 13954 | -7/Garrison | Triggered checkpoint 13984 | -7/Garrison | Garrison Relay disabled 13990 | -7/Garrison | Triggered checkpoint 14102 | -7/Garrison | Rescued a captive Derelict 14110 | -7/Garrison | Rescued a captive Derelict 14135 | -7/Garrison | P-60 Hacker assimilated allied VV-K36(b) 14148 | -7/Garrison | P-60 Hacker assimilated allied AG-8CJ(g) 14335 | -7/Garrison | Lost 4 allies 14338 | -7/Garrison | Triggered checkpoint 14362 | -7/Garrison | Discovered new exit (range 8) 14424 | -7/Garrison | Garrison Relay disabled 14452 | -7/Garrison | Learned Factory security intel 14555 | -7/Garrison | Garrison Relay disabled 14648 | -7/Garrison | Triggered checkpoint 14676 | -7/Garrison | Expanded RIF knowledge: Hotswap 14698 | -7/Garrison | Triggered checkpoint 14738 | -7/Garrison | Garrison Relay disabled 14790 | -7/Garrison | Garrison Relay disabled 14845 | -7/Garrison | Discovered new exit (range 8) 14916 | -7/Garrison | Triggered checkpoint 14937 | -7/Garrison | Triggered checkpoint 14978 | -7/Garrison | Garrison Relay disabled 15061 | -7/Garrison | Discovered new exit (range 12) 15091 | -7/Garrison | Entered Factory 15091 | -7/Factory | Accompanied by 10 allies 15396 | -7/Factory | Discovered new exit (range 5) 15491 | -7/Factory | First assault squad dispatched 15516 | -7/Factory | Assimilated ARC 4a with formatsys_deep 15738 | -7/Factory | Identified exit to Garrison 15991 | -7/Factory | Entered Garrison 15991 | -7/Garrison | Accompanied by 11 allies 16027 | -7/Garrison | Triggered checkpoint 16031 | -7/Garrison | P-60 Hacker assimilated allied Guardian 4b 16059 | -7/Garrison | Discovered new exit (range 65) 16059 | -7/Garrison | Discovered new exit (range 73) 16059 | -7/Garrison | Discovered new exit (range 50) 16083 | -7/Garrison | Garrison Relay disabled 16161 | -7/Garrison | Triggered checkpoint 16164 | -7/Garrison | Triggered checkpoint 16193 | -7/Garrison | Triggered checkpoint 16217 | -7/Garrison | Triggered checkpoint 16227 | -7/Garrison | Spotted B-75 Beast 16289 | -7/Garrison | Garrison Relay disabled 16378 | -7/Garrison | Spotted B-75 Beast 16392 | -7/Garrison | Allies destroyed B-75 Beast 16438 | -7/Garrison | Found Quantum Capacitor 16590 | -7/Garrison | Garrison Relay disabled 16645 | -7/Garrison | Triggered checkpoint 16668 | -7/Garrison | Expanded RIF knowledge: Program Shield 16707 | -7/Garrison | Found embedded Infiltrators 16740 | -7/Garrison | Entered Factory 16740 | -6/Factory | Accompanied by 9 allies 16740 | -6/Factory | Evolved 2 slots: Power x1, Utility x1 16967 | -6/Factory | Build established: Botlord-Mutant 17090 | -6/Factory | First assault squad dispatched 17135 | -6/Factory | Identified exit to Garrison 17155 | -6/Factory | Entered Garrison 17155 | -6/Garrison | Accompanied by 8 allies 17183 | -6/Garrison | Triggered checkpoint 17208 | -6/Garrison | Garrison Relay disabled 17300 | -6/Garrison | Found Adv. Powered Armor 17356 | -6/Garrison | Triggered checkpoint 17361 | -6/Garrison | Triggered checkpoint 17397 | -6/Garrison | Triggered checkpoint 17402 | -6/Garrison | Triggered checkpoint 17461 | -6/Garrison | Triggered checkpoint 17470 | -6/Garrison | Garrison Relay disabled 17521 | -6/Garrison | Rescued a captive Derelict 17533 | -6/Garrison | Discovered new exit (range 7) 17562 | -6/Garrison | Expanded RIF knowledge: Patrol Navigation 17663 | -6/Garrison | Garrison Relay disabled 17691 | -6/Garrison | Triggered checkpoint 17724 | -6/Garrison | Discovered new exit (range 14) 17998 | -6/Garrison | Spotted B-75 Beast 17998 | -6/Garrison | Spotted B-75 Beast 18027 | -6/Garrison | Triggered checkpoint 18029 | -6/Garrison | Triggered checkpoint 18101 | -6/Garrison | Garrison Relay disabled 18131 | -6/Garrison | Garrison Relay disabled 18210 | -6/Garrison | Discovered new exit (range 15) 18269 | -6/Garrison | Entered Factory 18269 | -5/Factory | Accompanied by 10 allies 18269 | -5/Factory | Evolved 2 slots: Utility x2 18941 | -5/Factory | Discovered new exit (range 14) 19039 | -5/Factory | Discovered new exit (range 13) 19045 | -5/Factory | Garrison activated, responded to threat 19057 | -5/Factory | Identified exit to Factory 19169 | -5/Factory | First assault squad dispatched 19234 | -5/Factory | Sucked down chute 19234 | -5/Factory | Entered Waste 19249 | -5/Waste | EMP discharged 19249 | -5/Waste | System corruption reached 10% 19262 | -5/Waste | Spotted C-40 Crusher 19267 | -5/Waste | Spotted C-40 Crusher 19277 | -5/Waste | Spotted C-40 Crusher 19285 | -5/Waste | Spotted C-40 Crusher 19299 | -5/Waste | Spotted C-40 Crusher 19304 | -5/Waste | Destroyed C-40 Crusher 19311 | -5/Waste | Spotted C-40 Crusher 19337 | -5/Waste | Found Damper Plating 19339 | -5/Waste | 2 allies followed down the chute 19349 | -5/Waste | EMP discharged 19359 | -5/Waste | 2 allies followed down the chute 19384 | -5/Waste | Allies destroyed C-40 Crusher 19423 | -5/Waste | Allies destroyed C-40 Crusher 19444 | -5/Waste | Allies destroyed C-40 Crusher 19449 | -5/Waste | EMP discharged 19463 | -5/Waste | Discovered new exit (range 15) 19549 | -5/Waste | EMP discharged 19649 | -5/Waste | EMP discharged 19649 | -5/Waste | Entered Factory 19649 | -5/Factory | Accompanied by 4 allies 19912 | -5/Factory | Identified exit to Garrison 19926 | -5/Factory | P-80 Master assimilated allied P8-Y08(m) 20198 | -5/Factory | Spotted B-75 Beast 20326 | -5/Factory | Destroyed B-75 Beast 20672 | -5/Factory | Cargo convoy interrupted 20738 | -5/Factory | Identified exit to Garrison 20738 | -5/Factory | Entered Garrison 20738 | -5/Garrison | Accompanied by 1 ally 20755 | -5/Garrison | Lost 3 allies 20920 | -5/Garrison | Triggered checkpoint 21042 | -5/Garrison | Expanded RIF knowledge: Watcher Feeds 21118 | -5/Garrison | Garrison Relay disabled 21272 | -5/Garrison | Triggered checkpoint 21273 | -5/Garrison | Triggered checkpoint 21402 | -5/Garrison | Triggered checkpoint 21434 | -5/Garrison | Garrison Relay disabled 21486 | -5/Garrison | Expanded RIF knowledge: Autoassimilate 21647 | -5/Garrison | Discovered exit to Factory (range 13) 21765 | -5/Garrison | Spotted B-75 Beast 21785 | -5/Garrison | Destroyed B-75 Beast 22152 | -5/Garrison | Triggered checkpoint 22247 | -5/Garrison | Garrison Relay disabled 22338 | -5/Garrison | Discovered exit to Factory (range 12) 22442 | -5/Garrison | Triggered checkpoint 22528 | -5/Garrison | Discovered exit to Factory (range 10) 22546 | -5/Garrison | Triggered checkpoint 22570 | -5/Garrison | Triggered checkpoint 22580 | -5/Garrison | Garrison Relay disabled 22692 | -5/Garrison | Entered Factory 22692 | -4/Factory | Accompanied by 14 allies 22692 | -4/Factory | Evolved 2 slots: Propulsion x1, Utility x1 22875 | -4/Factory | Lost 5 allies 22947 | -4/Factory | Sucked down chute 22947 | -4/Factory | Entered Waste 22965 | -4/Waste | Spotted C-40 Crusher 22975 | -4/Waste | Spotted C-40 Crusher 22982 | -4/Waste | Spotted C-40 Crusher 22993 | -4/Waste | Spotted C-40 Crusher 22993 | -4/Waste | Spotted C-40 Crusher 23008 | -4/Waste | Allies destroyed C-40 Crusher 23011 | -4/Waste | Allies destroyed C-40 Crusher 23033 | -4/Waste | Spotted C-40 Crusher 23048 | -4/Waste | Allies destroyed C-40 Crusher 23059 | -4/Waste | Destroyed C-40 Crusher 23062 | -4/Waste | Destroyed C-40 Crusher 23072 | -4/Waste | Destroyed C-40 Crusher 23222 | -4/Waste | 14 allies followed down the chute 23248 | -4/Waste | Discovered new exit (range 16) 23575 | -4/Waste | Warlord forces began an assault 24160 | -4/Waste | Entered Factory 24160 | -4/Factory | Accompanied by 28 allies 24184 | -4/Factory | Identified exit to Garrison 24305 | -4/Factory | Discovered new exit (range 15) 24361 | -4/Factory | Discovered new exit (range 30) 24408 | -4/Factory | Entered Garrison 24408 | -4/Garrison | Accompanied by 29 allies 24428 | -4/Garrison | Expanded RIF knowledge: Autooverride 24581 | -4/Garrison | Lost 8 allies 24668 | -4/Garrison | Garrison Relay disabled 24694 | -4/Garrison | Triggered checkpoint 24720 | -4/Garrison | Phase Generator disabled 24734 | -4/Garrison | Garrison Relay disabled 24751 | -4/Garrison | Lost 3 allies 24792 | -4/Garrison | Triggered checkpoint 24798 | -4/Garrison | Triggered checkpoint 24824 | -4/Garrison | Triggered checkpoint 24870 | -4/Garrison | Triggered checkpoint 24870 | -4/Garrison | Triggered checkpoint 24901 | -4/Garrison | Garrison Relay disabled 24943 | -4/Garrison | Discovered new exit (range 15) 24943 | -4/Garrison | Spotted B-86 Titan 24965 | -4/Garrison | Destroyed B-86 Titan 25005 | -4/Garrison | Found Relay Coupler [Proto] 25009 | -4/Garrison | Found Relay Coupler [Proto] 25305 | -4/Garrison | Garrison Relay disabled 25316 | -4/Garrison | Triggered checkpoint 25358 | -4/Garrison | Discovered new exit (range 11) 25447 | -4/Garrison | Entered Research 25447 | -3/Research | Accompanied by 10 allies 25447 | -3/Research | Evolved 2 slots: Propulsion x1, Utility x1 25995 | -3/Research | Discovered new exit (range 13) 26090 | -3/Research | Identified exit to Garrison 26115 | -3/Research | Entered Garrison 26115 | -3/Garrison | Accompanied by 4 allies 26207 | -3/Garrison | Triggered checkpoint 26230 | -3/Garrison | Garrison Relay disabled 26306 | -3/Garrison | Expanded RIF knowledge: Code Merge 26383 | -3/Garrison | Spotted B-86 Titan 26386 | -3/Garrison | Triggered checkpoint 26400 | -3/Garrison | Triggered checkpoint 26409 | -3/Garrison | Triggered checkpoint 26413 | -3/Garrison | Allies destroyed B-86 Titan 26443 | -3/Garrison | Lost 5 allies 26469 | -3/Garrison | Garrison Relay disabled 26522 | -3/Garrison | Discovered new exit (range 5) 26559 | -3/Garrison | Triggered checkpoint 26668 | -3/Garrison | Garrison Relay disabled 26789 | -3/Garrison | Garrison Relay disabled 26799 | -3/Garrison | Triggered checkpoint 26868 | -3/Garrison | Discovered new exit (range 8) 26979 | -3/Garrison | Garrison Relay disabled 27021 | -3/Garrison | Discovered new exit (range 15) 27028 | -3/Garrison | Found embedded Infiltrators 27049 | -3/Garrison | Triggered checkpoint 27176 | -3/Garrison | Entered Research 27176 | -3/Research | Accompanied by 11 allies 27342 | -3/Research | Garrison activated, responded to threat 27378 | -3/Research | Lost 4 allies 27564 | -3/Research | Lost 5 allies 27676 | -3/Research | First assault squad dispatched 27743 | -3/Research | Identified exit to Armory 27743 | -3/Research | Identified exit to Testing 27823 | -3/Research | Assimilated ARC 8a with formatsys_deep 27861 | -3/Research | Discovered new exit (range 9) 27945 | -3/Research | Entered Testing 27945 | -3/Testing | Accompanied by 5 allies 28162 | -3/Testing | Spotted Striker 28199 | -3/Testing | Found Prototype Energy Cannon 28199 | -3/Testing | Identified Disintegrator 28234 | -3/Testing | Garrison activated, responded to threat 28283 | -3/Testing | Found Centrium Heavy Armor Plating 28297 | -3/Testing | Scanned by Researcher 28300 | -3/Testing | Lost 7 allies 28757 | -3/Testing | Found Prototype Energy Cannon 28821 | -3/Testing | Discovered new exit (range 10) 29029 | -3/Testing | Found Quantum Capacitor 29237 | -3/Testing | Spotted PL-QELK4B3VIH 29339 | -3/Testing | Identified exit to Garrison 29355 | -3/Testing | Fabricated M-13 Machinist (x1) 29547 | -3/Testing | Entered Garrison 29547 | -3/Garrison | Accompanied by 2 allies 29587 | -3/Garrison | Expanded RIF knowledge: Alert ID Control 29814 | -3/Garrison | Lost 4 allies 29905 | -3/Garrison | Spotted B-86 Titan 29911 | -3/Garrison | Triggered checkpoint 29915 | -3/Garrison | Triggered checkpoint 29919 | -3/Garrison | Triggered checkpoint 29939 | -3/Garrison | Allies destroyed B-86 Titan 30070 | -3/Garrison | Discovered new exit (range 10) 30087 | -3/Garrison | Triggered checkpoint 30104 | -3/Garrison | Garrison Relay disabled 30298 | -3/Garrison | Triggered checkpoint 30301 | -3/Garrison | Discovered new exit (range 11) 30358 | -3/Garrison | Spotted B-86 Titan 30387 | -3/Garrison | Triggered checkpoint 30393 | -3/Garrison | Garrison Relay disabled 30540 | -3/Garrison | Destroyed B-86 Titan 30680 | -3/Garrison | Triggered checkpoint 30716 | -3/Garrison | Lost 3 allies 30737 | -3/Garrison | Discovered new exit (range 11) 30855 | -3/Garrison | Triggered checkpoint 30866 | -3/Garrison | Garrison Relay disabled 31105 | -3/Garrison | Entered Research 31105 | -2/Research | Accompanied by 2 allies 31105 | -2/Research | Evolved 2 slots: Utility x2 31229 | -2/Research | Spotted B-90 Cyclops 31336 | -2/Research | Destroyed B-90 Cyclops 31722 | -2/Research | Found Prototype Launcher 31722 | -2/Research | Identified Adv. Micro-nuke Launcher 31805 | -2/Research | Found Unknown Protection 31805 | -2/Research | Identified Hvy. Reflective Plating 31813 | -2/Research | Found Prototype Device 31813 | -2/Research | Identified Exp. Shock Absorption System 31977 | -2/Research | Lost 6 allies 32044 | -2/Research | Fabricated M-13 Machinist (x1) 32316 | -2/Research | Lost 6 allies 32357 | -2/Research | Identified Potential Cannon 32403 | -2/Research | System corruption reached 10% 32451 | -2/Research | Lost 5 parts (2n3u) 32511 | -2/Research | Discovered new exit (range 8) 32524 | -2/Research | Found Exp. Focal Shield 32549 | -2/Research | Identified exit to Access 32652 | -2/Research | First assault squad dispatched 32736 | -2/Research | Discovered new exit (range 4) 32741 | -2/Research | Identified exit to Quarantine 32743 | -2/Research | Entered Quarantine 32767 | -2/Quarantine | Lost 5 parts (2p1n1u1w) 33346 | -2/Quarantine | Found Alien Artifact 33402 | -2/Quarantine | Found Alien Artifact 33402 | -2/Quarantine | Identified Hpw. Transdimensional Reconstructor 33402 | -2/Quarantine | Warped through subspace 33467 | -2/Quarantine | Cryocooling Duct disabled 33482 | -2/Quarantine | Ambient heat levels rising (+20) 33482 | -2/Quarantine | Non-combat units ordered to evacuate 33505 | -2/Quarantine | Garrison activated, responded to threat 33546 | -2/Quarantine | Assimilated Q466-z with FLK Orb 33554 | -2/Quarantine | Assimilated Q179-y with FLK Orb 33720 | -2/Quarantine | Found Alien Slashing Weapon 33752 | -2/Quarantine | Found Alien Artifact 33790 | -2/Quarantine | P-80 Master assimilated allied Administrator 9b 33816 | -2/Quarantine | Discovered exit to Access (range 8) 33850 | -2/Quarantine | Found Alien Artifact 33850 | -2/Quarantine | Identified Phase Armor 34054 | -2/Quarantine | Found Alien Energy Cannon 34054 | -2/Quarantine | Identified Core Cannon 34123 | -2/Quarantine | Spotted Alpha 7 34146 | -2/Quarantine | Found Alien Artifact 34146 | -2/Quarantine | Identified Terrabomb 34146 | -2/Quarantine | Used Terrabomb 34174 | -2/Quarantine | Core integrity fell below 50% 34189 | -2/Quarantine | System corruption reached 30% 34292 | -2/Quarantine | Identified Sigix Broadsword 34298 | -2/Quarantine | Core integrity fell below 20% 34323 | -2/Quarantine | Lost 3 parts (1p1n1u) 34357 | -2/Quarantine | Destroyed by P-80 Master with Gamma Rifle Last Messages --------------- 34315_ Extracted 1 energy. 34320_ Acquired Relay Coupler [Proto]. 34324_ Scanalyzer disabled. 34324_ Adv. Heat Sink destroyed. 34326_ Dropped Lgt. Quantum Reactor. 34327_ Dropped Phase Armor. 34327_ Dropped Sigix Broadsword. 34331_ YZB&HW#MRTC5EW|F#ZUDMQ&H|VUNGL9TG 34340_ Slug penetrates Wall. 34340_ Adv. Heavy Siege Treads destroyed. 34340_ Slug penetrates Wall. 34343_ Acquired 60 matter. 34344_ Slug penetrates Wall. 34344_ Acquired 119 matter. 34347_ Slug penetrates Wall. 34348_ Relay Coupler [Swarmer] destroyed. 34348_ Com. Wheel destroyed. 34352_ Dropped Adv. Shield Generator. 34356_ Penetrated by Slug. 34356_ Relay Coupler [Heavy] destroyed. Map ----- +----------------------------------------------------+ | """ #*" """ #????# < #??????# """ """ #?? | | " """ #%""""" #????# #??????# #?? | | " " #*%==*[= #????# ????????# """ """ #?? | | " " #[!!% " !#????# #?????????# """ """ #?? | | " # !!! !!=#????# #?????????# """ """ #?? | | ####+#"######## #####?????# #?? | | o # #"""#?????#####+####### | | + #"T"#??????# | | # #" "######## | | # | | # ############# | | ######### ##########??# """ """ """ ######+ | | ^ " #??# """ """ """ ## | | ^ # "" #?## """ """ """ ## """ | | ^^ # "" #?# ## """ | | "" """ """ # " """ #?# | ## """ | | "" """ """ # " """ ### ## | | "" """ """ # """"" + ## | | # "" ### ######+######### | | # "" #?# #??# #?# | | + #?# #??# #?# % ! | | ############ #??# " " #?# | | #??# " " #?# | | p #??# """ #?###### | | ?# #??# """"""" #??????? | | ?# """" """" """" @ #??# """"""" #??????? | | ?# """" """" """" #??# #??????? | | ?# """" """" """" #??###########??????? | | ?+ """" """" """" #???????????????????? | | ?#w #???????????????????? | | ?# #???????????????????? | | ?# #???????????????????? | | ?# ###########????????????????? | | ?# #????????????????? | | ?# # #????????????????? | | + ##### + #????????????????? | | # #???# ! # """ """ #????????????????? | | ?+ #???# pp # """ """ #????????????????? | | ?##+############## # """ """ #????????????????? | | ?# #??????# # #????????????????? | | ?# " #??????#%*! # ! #????????????????? | | ?# "" ######## | ###########????????????????? | | ?#" " # ! #??????????????????????????? | | ?#" "" / =%= #??????????????????????????? | | ?#" " # [ #??????????????????????????? | | ?#T ! "" # #??????????????????????????? | | ?#" "" ]####+###"######????????????????????????? | | ?#" "" =# #????????????????????????? | | ?#" "**#!""""" """"" #????????????????????????? | | ?# [*|=%!!"""" """"" #????????????????????????? | +----------------------------------------------------+ Best States ------------- Heat Dissipation 142 Coolant Potential 50 Energy Generation 45 Energy Capacity 1200 Matter Stores 300 Matter Capacity 300 Sight Range 16 Terrain Scan Density 10 Jamming Range 16 EM Shielding 4 Armor Coverage 2000 Resistance: KI 30 Resistance: TH 25 Resistance: EM 90 Weapon Shielding 66 Weapon Cycling 25 Evasion (%) 40 Recoil Reduction 6 Offensive Hacking 12 Defensive Hacking 10 Relay Coupler Types 5 Relay Coupler Value 192 Authchip Count 1 Item Schematics ----------------- Hrd. Heavy Armor Plating | -8/Materials | Scanalyzed Robot Schematics ------------------ M-13 Machinist | -10/Materials | Hacked Fabricated ------------ M-13 Machinist | x1 | -3/Testing | Authchip M-13 Machinist | x1 | -2/Research | Authchip Alien Tech Used ----------------- High-powered Transdimensional Reconstructor Phase Armor Core Cannon Terrabomb Sigix Broadsword Achievements -------------- None Challenges ------------ None Game ------ Seed HelicalCombatInverter Manual? 0 Play Time 04:15:05 Cumulative 478.8 hours Start 2024.08.17 @ 11:52:45 End 2024.08.18 @ 16:47:01 Sessions 11 Manual Loads 0 Difficulty Rogue Special Mode None Game No. 282 Rogue 282 Adventurer 0 Explorer 0 Win Type - Total 34 Types 25/2/4/1/1/0/0/1/0 Lore% 79 Gallery% 84 Achievement% 85 Wizard Run 0 Options --------- Layout 0 ASCII 0 Keyboard 1 Movement Numpad Keybinds 0 Fullscreen 2 Font 18/SmallcapsGlow Map View 76x50 Zoom Use 0% Tactical HUD 1 Map Filters NONE Filters NONE Steam 1 RUN: cca196ed-df18-4830-a7fe-6dd9f180fd89